Cogmind - Beta 15 @@@ ROGUE MODE // 2025.07.18 @ 21:05:02 Player: aoemica Result: Fortifying 0b10! Performance ------------- Evolutions (9) 4500 Regions Visited (39) 7800 Robots Destroyed (958) 4790 Value Destroyed (56942) 56942 Prototype IDs (91) 1820 Alien Tech Used (6) 1200 Bonus (29739) 29739 TOTAL SCORE: 106791 Bonus ------- High Alert Combat Kills 1569 Follower Combat Kills 3667 Entered Garrisons 2200 Used RIF Installer 6500 Network Hubs Disabled 400 Met Zhirov 300 Built Enhanced Grunts 300 Met R17 at Cetus 500 Met R17 at Research 2000 Scanned by Researcher 500 Pursued by Intercept 1000 Destroyed MAIN.C Guards 500 Met MAIN.C 5000 Destroyed MAIN.C Shell 5000 Win 3000 Friendly Fire -2697 Cogmind --------- Core Integrity 1032/1600 Matter 221/300 Energy 840/840 System Corruption 1% Temperature Cool (94) +ITN Movement Treading (155) Location By MAIN.C's Side Parts ------- > --- POWER (3) -------- Zero-point Reactor Vortex Chain Reactor > --- PROPULSION (6) --- Armored Heavy Treads Experimental Biometal Heavy Treads High-density Centrium Heavy Treads > --- UTILITY (10) ----- Experimental Cooling System Huge Storage Unit Experimental Core Analyzer Heavy Regenerative Plating Advanced Force Field High-powered Tractor Beam Microwarp Drive > --- WEAPON (6) ------- Linked Autogun Linked Autogun Linked Autogun > --- INVENTORY (25) --- Vortex Chain Reactor Armored Heavy Treads Experimental Biometal Medium Treads Experimental Biometal Medium Treads Experimental Energy Well (600) Improved Matter Compressor (300) Experimental Matter Compressor (500) Advanced Kinecellerator Graphene Brace Experimental EM Shield Advanced Point Defense System High-powered Tractor Beam Linked Autogun Linked Autogun Helical Railgun Heavy Hardcell Cannon Graviton Cannon Omega Cannon Advanced Remote Datajack Peak State ------------ > --- POWER ------------ Zero-point Reactor Vortex Chain Reactor > --- PROPULSION ------- Armored Heavy Treads Experimental Biometal Heavy Treads High-density Centrium Heavy Treads > --- UTILITY ---------- Experimental Cooling System Huge Storage Unit Experimental Matter Compressor Experimental Core Analyzer Heavy Regenerative Plating Advanced Force Field Microwarp Drive > --- WEAPON ----------- Linked Autogun Linked Autogun Linked Autogun > --- INVENTORY -------- Vortex Chain Reactor Armored Heavy Treads Experimental Biometal Medium Treads Experimental Biometal Medium Treads Experimental Energy Well Matter Compressor Improved Matter Compressor Advanced Kinecellerator Graphene Brace Experimental EM Shield Advanced Point Defense System High-powered Tractor Beam Linked Autogun Linked Autogun Helical Railgun Heavy Hardcell Cannon Graviton Cannon Omega Cannon Advanced Remote Datajack [Rating: 249] Favorites ----------- Power Quantum Reactor Engine Cooled Ion Engine Power Core Light Nuclear Core Reactor Quantum Reactor Propulsion Light Treads Treads Light Treads Leg Aluminum Leg Utility Huge Storage Unit Device Advanced Weapon Cycler Storage Huge Storage Unit Processor Core Analyzer Hackware Relay Coupler [NC] Protection Advanced Powered Armor Artifact Microwarp Drive Weapon KE Penetrator Energy Gun Advanced Beam Rifle Energy Cannon Beam Cannon Ballistic Gun KE Penetrator Ballistic Cannon Compact Linear Accelerator Launcher Mini Grenade Launcher Special Weapon Remote Datajack Impact Weapon Core Stripper Special Melee Weapon Datajack Build | -11 -10 -10 -9 -9 -9 -8 -8 -8 -8 -7 -7 -6 -6 -6 -6 -6 -6 -5 -5 -5 -5 -5 -5 -4 -4 -4 -4 -4 -4 -4 -4 -3 -3 -3 -2 -2 -2 -1 -1 ------- Run | Yrd Mat Min Mat Sto Gar Mat Gar Mat Gar Fac Gar Fac Was Fac Gar Fac Gar Fac Was Fac Gar Fac Gar Fac Gar Fac Ext Cet Arc Hub Gar Res Tes Gar Res Qua Sec Acc Com Slots Evolved 18 | . . . 2 . . 2 . . . 2 . 2 . . . . . 2 . . . . . 2 . . . . . . . 2 . . 2 . . 2 . Power 2 | . . . . . . . . . . . . . . . . . . . . . . . . 1 . . . . . . . 1 . . . . . . . Propulsion 4 | . . . 1 . . . . . . 1 . . . . . . . 1 . . . . . . . . . . . . . 1 . . . . . . . Utility 8 | . . . . . . 2 . . . 1 . 1 . . . . . 1 . . . . . 1 . . . . . . . . . . 1 . . 1 . Weapon 4 | . . . 1 . . . . . . . . 1 . . . . . . . . . . . . . . . . . . . . . . 1 . . 1 . Parts Attached 402 | 2 16 4 28 10 7 3 6 15 3 13 8 9 9 . 22 3 18 16 6 6 9 3 5 1 15 10 7 9 . 8 8 12 8 8 19 8 28 22 18 Power 51 | . 3 2 4 1 . . . 1 . 1 1 . 2 . 2 . 2 2 3 . . . . . 3 2 1 1 . 2 . 1 1 1 4 2 6 1 2 Engine 15 | . 3 1 4 1 . . . 1 . 1 1 . . . 1 . 2 . . . . . . . . . . . . . . . . . . . . . . Core 5 | . . 1 . . . . . . . . . . 1 . 1 . . 1 . . . . . . . . . . . . . . . . . . 1 . . Reactor 31 | . . . . . . . . . . . . . 1 . . . . 1 3 . . . . . 3 2 1 1 . 2 . 1 1 1 4 2 5 1 2 Propulsion 89 | . 4 . 8 7 3 1 5 7 . 4 4 1 2 . 2 . 6 1 2 . 6 . 2 . 1 2 1 1 . . 1 2 . 1 4 1 1 5 4 Treads 87 | . 2 . 8 7 3 1 5 7 . 4 4 1 2 . 2 . 6 1 2 . 6 . 2 . 1 2 1 1 . . 1 2 . 1 4 1 1 5 4 Leg 2 | . 2 . . . . . . . . . . . . . . . . . . . . . . . . . . . . . . . . . . . . . . Wheel . | . . . . . . . . . . . . . . . . . . . . . . . . . . . . . . . . . . . . . . . . Hover . | . . . . . . . . . . . . . . . . . . . . . . . . . . . . . . . . . . . . . . . . Flight . | . . . . . . . . . . . . . . . . . . . . . . . . . . . . . . . . . . . . . . . . Utility 151 | 2 3 2 5 1 1 2 1 3 1 4 1 2 4 . 11 3 5 7 1 5 2 3 2 1 6 2 2 4 . 3 6 4 5 6 7 3 9 12 10 Device 67 | 2 1 2 4 1 1 . . 1 . 2 1 1 1 . 4 . . 3 . 3 . 3 1 . 2 2 . 1 . 3 3 3 3 1 5 1 3 4 5 Storage 11 | . 2 . 1 . . . . 1 . . . . 1 . . . . . . . . . . . . . . . . . . . 1 . 1 . . 1 3 Processor 9 | . . . . . . 1 . . . . . . . . 1 1 . . . . . . . 1 . . . . . . . . 1 . 1 . 3 . . Hackware 37 | . . . . . . . . . 1 . . . 1 . 3 1 2 3 . 1 1 . . . 3 . 2 . . . 2 1 . 5 . 2 1 6 2 Protection 26 | . . . . . . 1 1 1 . 2 . 1 1 . 3 1 3 1 1 1 1 . 1 . 1 . . 3 . . 1 . . . . . 1 1 . Artifact 1 | . . . . . . . . . . . . . . . . . . . . . . . . . . . . . . . . . . . . . 1 . . Weapon 111 | . 6 . 11 1 3 . . 4 2 4 2 6 1 . 7 . 5 6 . 1 1 . 1 . 5 4 3 3 . 3 1 5 2 . 4 2 12 4 2 Energy Gun 11 | . 1 . 3 1 . . . 1 . . . . . . 1 . 2 2 . . . . . . . . . . . . . . . . . . . . . Energy Cannon 9 | . 3 . . . . . . . . . . . . . 1 . . 1 . . . . . . 1 1 . . . . . . . . . . 1 . 1 Ballistic Gun 70 | . 1 . 5 . 2 . . 3 2 1 2 5 1 . 5 . 3 3 . 1 . . 1 . 3 1 3 3 . 3 . 3 1 . 4 1 8 4 1 Ballistic Cannon 4 | . . . . . . . . . . 1 . 1 . . . . . . . . . . . . . . . . . . . 1 1 . . . . . . Launcher 8 | . . . 2 . 1 . . . . 1 . . . . . . . . . . . . . . . 1 . . . . . 1 . . . . 2 . . Special Weapon 7 | . 1 . . . . . . . . 1 . . . . . . . . . . 1 . . . 1 1 . . . . 1 . . . . 1 . . . Impact Weapon 1 | . . . . . . . . . . . . . . . . . . . . . . . . . . . . . . . . . . . . . 1 . . Slashing Weapon . | . . . . . . . . . . . . . . . . . . . . . . . . . . . . . . . . . . . . . . . . Piercing Weapon . | . . . . . . . . . . . . . . . . . . . . . . . . . . . . . . . . . . . . . . . . Special Melee Weapon 1 | . . . 1 . . . . . . . . . . . . . . . . . . . . . . . . . . . . . . . . . . . . Unidentified Prototypes 43 | . . 1 1 2 . . . . . 1 . . . . . . . 1 . . . . . . . 2 . 4 . 2 1 1 5 . . . 10 3 9 Corrupted Parts 3 | . . . . . . . . . . . . . . . . . 1 . . . . . . . . . . . . . 1 . . . . . 1 . . System Corruption 21 | . . . . . . . . . . . . . . . . . 6 . . . . . . . . . . . . . 5 . . . . . 10 . . Parts Lost 35 | . 1 1 5 . 2 . . . . . 1 1 . . 6 . 6 1 . . . . . . 3 . 1 1 . . . . . 2 . 1 1 2 . Power 6 | . 1 1 . . . . . . . . . . . . 1 . . . . . . . . . 1 . 1 . . . . . . . . . 1 . . Propulsion 7 | . . . 2 . . . . . . . . . . . 1 . 2 . . . . . . . 1 . . 1 . . . . . . . . . . . Utility 12 | . . . 1 . . . . . . . . 1 . . 4 . 1 . . . . . . . 1 . . . . . . . . 2 . . . 2 . Weapon 10 | . . . 2 . 2 . . . . . 1 . . . . . 3 1 . . . . . . . . . . . . . . . . . 1 . . . Highest Loss Streak 5 | . 1 1 4 . 1 . . . . . 1 1 . . 5 . 4 1 . . . . . . 2 . 1 1 . . . . . 1 . 1 1 2 . To Critical Strikes 2 | . . . . . . . . . . . . . . . . . . . . . . . . . . . 1 1 . . . . . . . . . . . Average Backups 21 | 6 12 15 21 25 24 24 25 24 24 24 24 24 23 20 19 21 20 21 24 21 20 21 20 20 20 20 20 20 21 22 23 23 22 22 22 22 21 20 18 Power . | 1 . . 1 1 1 1 1 1 1 . . . . . . . . . . 1 1 1 1 . . . . 1 1 1 1 . . . . 1 1 1 1 Propulsion 3 | 4 2 4 5 7 7 7 7 7 7 6 7 6 3 2 1 2 1 1 1 1 1 1 1 1 1 1 1 . 1 1 1 . 1 1 1 1 . 1 2 Utility 9 | . 4 5 5 6 6 8 9 8 7 10 9 8 10 8 8 10 11 13 15 12 11 12 12 12 12 11 10 10 11 12 12 14 14 14 13 12 12 8 7 Weapon 6 | 1 5 5 7 10 9 7 7 7 7 6 7 7 9 9 8 7 6 6 6 6 6 6 5 6 6 7 7 6 6 6 6 6 6 6 6 6 5 6 4 Tool/Special . | . . . . . . . . . . . . . . . . . . . . . . . . . . . . . . . . . . . . . . . . Unused Backups 116 | 6 12 . 9 4 . 2 1 6 1 1 1 2 8 1 5 1 3 3 2 . 2 . 4 1 2 2 . 1 . . 2 2 2 3 1 2 6 1 17 Power 9 | 1 1 . 2 . . . . . . . . . . . . . . . . . . . . . . . . 1 . . . . . . . . 1 . 3 Propulsion 23 | 2 5 . 1 . . . . 2 . . . . 7 . . . . 1 1 . . . . . . . . . . . . . . . 1 . . . 3 Utility 41 | 1 1 . 1 . . 1 1 . 1 1 1 1 1 . 3 . 3 2 1 . 2 . 3 . 2 1 . . . . 2 2 1 1 . 1 1 1 5 Weapon 40 | 2 5 . 5 4 . 1 . 4 . . . 1 . 1 2 1 . . . . . . 1 1 . 1 . . . . . . 1 2 . . 3 . 5 Tool/Special 3 | . . . . . . . . . . . . . . . . . . . . . . . . . . . . . . . . . . . . 1 1 . 1 Average Slot Usage (%) 90 | . 99 99 99 100 100 99 100 99 100 92 99 99 79 86 84 86 90 87 70 84 87 88 88 88 88 88 88 89 89 82 88 84 84 84 85 85 81 80 71 Engine 4 | . 14 3 10 11 11 9 9 9 9 7 6 6 . . . 6 6 1 . . . . . . . . . . . . . . . . . . . . . Reactor 5 | . . . . . . . . . . . . . 4 6 5 . . 3 4 5 5 5 5 10 9 10 9 10 10 10 10 13 14 13 13 12 12 12 10 Treads 20 | . 22 28 32 33 33 27 27 27 27 29 30 26 15 13 13 13 17 16 17 17 17 17 17 15 14 15 15 15 15 15 14 13 14 14 13 13 13 18 13 Device 13 | . 14 14 10 11 11 10 9 9 9 7 15 16 6 13 13 13 13 12 . 13 17 21 23 21 16 15 15 15 15 8 14 8 9 16 16 16 12 23 21 Storage 7 | . 14 14 11 11 11 9 9 9 9 7 7 6 6 13 7 6 6 5 5 5 6 6 5 5 5 8 5 5 5 5 5 4 4 4 4 4 4 4 4 Processor 5 | . . . . . . 8 9 9 9 7 7 6 6 6 6 6 6 5 5 5 5 5 5 9 10 10 10 10 10 10 10 9 9 4 4 4 4 4 4 Hackware 2 | . . . . . . . . . . . . . 2 . 6 4 4 7 5 5 4 . . . 3 1 4 5 5 5 5 9 9 6 8 8 8 . . Protection 4 | . . . . . . 7 8 8 9 6 7 9 6 6 3 7 7 6 4 5 5 5 5 5 5 5 5 5 5 4 5 4 3 4 4 3 3 3 3 Energy Gun 4 | . 10 . 13 11 10 8 8 9 8 1 . . . . 1 5 8 5 1 4 4 5 5 5 . . . . . . . . . . . . . . . Energy Cannon 1 | . 14 27 3 . . . . . . . . . . . . . . . . . . . . . . 1 . . 1 . . 1 . . . . . . . Ballistic Gun 17 | . 2 . 14 22 22 18 18 18 18 21 22 24 20 26 23 20 16 15 17 17 16 17 17 15 19 19 20 20 19 20 20 17 17 18 20 19 20 14 11 Peak Build Rating 249 | 7 8 15 21 26 23 29 35 41 43 50 49 58 85 79 92 91 90 96 98 97 109 110 114 127 132 132 134 131 129 133 140 164 172 175 194 198 221 235 249 Average Rating 101 | 6 7 11 18 20 21 28 28 35 40 48 45 53 74 78 82 90 83 91 95 94 102 109 110 124 125 128 128 128 128 128 133 158 164 170 181 187 200 213 223 On Entrance 94 | 6 7 8 13 21 21 23 29 30 40 43 47 46 52 80 79 91 90 83 93 97 95 109 110 114 124 127 131 128 128 128 133 140 162 165 168 183 190 215 215 Naked Turns . | . . . . . . . . . . . . . . . . . . . . . . . . . . . . . . . . . . . . . . . . Heaviest Build 226 | 12 32 32 98 97 97 105 104 107 107 122 117 134 153 127 131 131 128 148 168 160 137 137 133 160 158 159 161 161 161 180 168 192 188 190 198 193 216 226 221 Greatest Support 240 | 20 40 40 60 60 60 60 60 60 60 80 80 80 140 140 140 140 140 160 160 160 180 180 180 150 150 150 165 165 165 165 170 215 210 210 220 215 240 235 235 Greatest Overweight (x) 3 | . . . 1 1 1 1 1 1 1 1 1 1 1 . 1 . 1 . 1 . . . . 1 1 1 1 . . 1 1 . . . 1 1 . 3 1 Average Overweight (x) . | . . . . 1 1 1 1 1 1 1 1 1 . . . . . . . . . . . . . 1 . . . . . . . . . . . . . Largest Inventory Capacity 25 | 8 15 15 25 25 25 25 25 25 25 25 25 25 25 25 25 25 25 25 25 25 25 25 25 25 25 25 25 25 25 25 25 25 25 25 25 25 25 25 25 Average Capacity 24 | 8 13 15 22 25 25 25 25 25 25 25 25 25 25 25 25 25 25 25 25 25 25 25 25 25 25 25 25 25 25 25 25 25 25 25 25 25 25 25 25 Most Carried 25 | 7 15 15 25 25 25 25 25 25 25 25 25 25 25 25 25 25 25 25 25 25 25 25 25 25 25 25 25 25 25 25 25 25 25 25 25 25 25 25 25 Average Carried 23 | 6 12 15 21 25 24 24 25 24 24 24 24 24 24 25 24 24 24 24 24 24 24 25 24 24 24 24 24 24 25 24 24 24 24 24 24 24 24 24 24 Final Capacity 25 | 8 15 15 25 25 25 25 25 25 25 25 25 25 25 25 25 25 25 25 25 25 25 25 25 25 25 25 25 25 25 25 25 25 25 25 25 25 25 25 25 Final Carried 25 | 7 15 15 25 25 25 25 25 25 25 25 25 25 25 25 25 25 25 25 25 24 25 25 25 25 25 25 25 25 25 25 25 25 25 25 25 25 25 25 25 Class Distribution -------------------- 33% | Botlord-Tank 19% | Scavenger-Gunner 9% | Gunner 9% | Scavenger-Executioner 8% | Scavenger-Tank 7% | Botlord-Gunner 5% | Mutant 4% | Bothacker-Tank Dominant Class ---------------- Mutant | -10/Materials Mutant | -10/Mines Scavenger-Gunner | -9/Materials Scavenger-Gunner | -9/Storage Scavenger-Gunner | -9/Garrison Scavenger-Gunner | -8/Materials Scavenger-Gunner | -8/Garrison Scavenger-Gunner | -8/Materials Gunner | -8/Garrison Gunner | -7/Factory Scavenger-Tank | -7/Garrison Scavenger-Tank | -6/Factory Scavenger-Tank | -6/Waste Scavenger-Tank | -6/Factory Scavenger-Tank | -6/Garrison Bothacker-Tank | -6/Factory Bothacker-Tank | -6/Garrison Botlord-Tank | -5/Factory Bothacker-Tank | -5/Waste Bothacker-Tank | -5/Factory Botlord-Tank | -5/Garrison Botlord-Tank | -5/Factory Botlord-Tank | -5/Garrison Botlord-Tank | -4/Factory Botlord-Tank | -4/Garrison Botlord-Tank | -4/Factory Botlord-Tank | -4/Extension Botlord-Tank | -4/Cetus Botlord-Tank | -4/Archives Botlord-Tank | -4/Hub_04(d) Botlord-Tank | -4/Garrison Botlord-Tank | -3/Research Botlord-Gunner | -3/Testing Botlord-Tank | -3/Garrison Botlord-Gunner | -2/Research Botlord-Tank | -2/Quarantine Botlord-Tank | -2/Section 7 Scavenger-Executioner | -1/Access Scavenger-Executioner | -1/Command Resources | -11 -10 -10 -9 -9 -9 -8 -8 -8 -8 -7 -7 -6 -6 -6 -6 -6 -6 -5 -5 -5 -5 -5 -5 -4 -4 -4 -4 -4 -4 -4 -4 -3 -3 -3 -2 -2 -2 -1 -1 ----------- Run | Yrd Mat Min Mat Sto Gar Mat Gar Mat Gar Fac Gar Fac Was Fac Gar Fac Gar Fac Was Fac Gar Fac Gar Fac Gar Fac Ext Cet Arc Hub Gar Res Tes Gar Res Qua Sec Acc Com Matter Collected 51782 | 237 241 121 1063 566 451 162 347 683 427 631 1033 1034 975 385 1982 535 1379 743 679 86 943 102 465 76 1060 592 1144 505 31 1105 1554 910 1546 2261 2679 1760 5455 6051 9783 Remotely 20344 | . . . . . . . . . . 96 106 . . 128 515 265 338 . . . . . . . . . . . . . . 358 685 518 672 136 2876 5035 8616 Salvage Created 59243 | 163 945 223 1766 1293 856 312 557 2000 526 862 995 986 669 458 1740 434 1090 943 1857 86 1559 225 1036 86 1149 1069 1719 337 31 811 2114 766 1392 2848 2931 1256 6102 7814 7237 Parts 2761 | 21 46 17 97 71 60 17 34 106 47 61 57 38 13 18 105 28 51 44 30 5 56 17 46 4 56 52 71 16 1 44 96 38 70 126 190 50 249 288 325 Haulers Intercepted 32 | . 2 . 5 6 . 1 . 5 . . . 1 . 1 . . . 5 . . . . . . . 2 . . . . . . . . . . 1 3 . Recyclers Shooed 34 | 1 2 1 5 5 . . . 1 . 1 . 2 . . . . . 1 . . . . . . . 1 2 . . . . 1 1 . 2 2 1 5 . Parts Field Recycled . | . . . . . . . . . . . . . . . . . . . . . . . . . . . . . . . . . . . . . . . . Retrieved Matter . | . . . . . . . . . . . . . . . . . . . . . . . . . . . . . . . . . . . . . . . . Parts Self-Destructed . | . . . . . . . . . . . . . . . . . . . . . . . . . . . . . . . . . . . . . . . . Prevented . | . . . . . . . . . . . . . . . . . . . . . . . . . . . . . . . . . . . . . . . . Kills | -11 -10 -10 -9 -9 -9 -8 -8 -8 -8 -7 -7 -6 -6 -6 -6 -6 -6 -5 -5 -5 -5 -5 -5 -4 -4 -4 -4 -4 -4 -4 -4 -3 -3 -3 -2 -2 -2 -1 -1 ------- Run | Yrd Mat Min Mat Sto Gar Mat Gar Mat Gar Fac Gar Fac Was Fac Gar Fac Gar Fac Was Fac Gar Fac Gar Fac Gar Fac Ext Cet Arc Hub Gar Res Tes Gar Res Qua Sec Acc Com Combat Hostiles Destroyed 735 | . 16 7 33 19 30 4 17 31 22 16 26 8 2 6 31 9 28 7 6 1 20 3 21 2 21 10 20 3 . 10 46 8 15 33 31 8 65 42 58 Melee 2 | . . . . . . . . . . . . . . . . . . . . . . . . . . . . . . . . . . . . . . . 2 Guns 656 | . 10 . 19 19 28 4 13 31 16 16 23 8 2 6 29 9 20 5 6 1 20 3 21 2 19 10 18 3 . 10 45 8 13 33 31 7 55 37 56 Cannons 22 | . 6 7 7 . . . . . . . . . . . 1 . . . . . . . . . . . . . . . . . . . . 1 . . . AOE 38 | . . . 6 . 2 . 4 . 6 . 3 . . . 1 . 8 2 . . . . . . . . 2 . . . . . . . . . 3 1 . Classes Destroyed 30 | 2 5 . 5 1 1 . 1 1 1 1 . . 1 . 1 . 1 . . . . . . . . . . . . . 1 2 1 . 1 . 2 1 1 Worker 56 | . . . 1 3 . 1 . 2 . . . . . . . . . 3 . . . . . . . 5 . . . 2 . . 3 . 7 3 3 12 11 Builder 26 | . . . 1 . . . . 1 . 1 . 1 . . . 1 . 1 . . . 1 . . . . . . . 1 . 1 1 . 5 2 2 7 . Tunneler 11 | 5 . . . . . . . 1 . . . 1 . . . . . 1 . . . . . . . 1 . . . . . . . . 1 . . 1 . Hauler 32 | . 2 . 5 6 . 1 . 5 . . . 1 . 1 . . . 5 . . . . . . . 2 . . . . . . . . . . 1 3 . Recycler 65 | 1 4 1 3 2 . 1 . 2 . 2 . 3 . . . . . . . . . 1 . . . . 1 . . . . 1 1 . 3 4 5 28 2 Mechanic 3 | . . . . 1 . . . . . . . 1 . . . . . . . . . . . . . . . . . . . . . . . . . 1 . Operator 10 | . 2 . . . . 1 . 3 . . . . . . . . . 1 . . . . . . . . . . . . . . 1 . . . 1 . 1 Drone 2 | . . . . . . . . . . . . . . . . . . . . . . . . . . . . . . . . . . . . . . . 2 Watcher 22 | . 1 . 3 1 . 1 . 1 1 1 . . . . . . . 1 . . . . . . . . 1 1 . . . . . 1 3 1 2 2 1 Swarmer 157 | . 6 3 9 3 14 3 6 5 12 6 10 . . . 4 3 8 . . . 9 2 7 . 9 . . . . . 24 . 1 1 6 . . . 6 Cutter 8 | . . . . . . . . . 2 . . . . . 4 . . . . . . . . . 1 . . . . . . . . . . . 1 . . Saboteur 1 | . . . . . . . . . . . . . . . . . . . . . . . . . . . . . . . 1 . . . . . . . . Grunt 197 | . 10 4 13 4 9 . 3 15 3 . 10 3 . 6 6 4 10 3 . . 8 . 10 . 2 1 10 . . . 4 . 6 19 1 2 16 10 5 Brawler 11 | . . . 1 . . . 3 1 . . . . . . 1 . . . . . 1 . 1 . . . . . . . . . . 1 . . . 2 . Duelist 8 | . . . 1 1 . . . 1 . . . . . . . . 2 . . . . . . . 2 . 1 . . . . . . . . . . . . Protector 1 | . . . . . . . . . . . . . . . . . . . . . . . . . . . . . . . . . . . . . 1 . . Researcher 2 | . . . . . . . . . . . . . . . . . . . . . . . . . . . . . . . . . 1 . . . 1 . . Sentry 99 | . . . 9 11 5 1 3 6 1 4 6 1 . . 8 2 2 1 . 1 . . . . 2 1 6 . . 3 10 2 1 2 1 . 5 4 1 Demolisher 1 | . . . . . . . . . . . . . . . . . 1 . . . . . . . . . . . . . . . . . . . . . . Specialist 9 | . . . . . . . . 2 1 . . 2 . . . . . . . . . . . . . . . . . 2 . . . . 2 . . . . Hunter 57 | . . . . . . . 1 1 1 2 . . . . 4 . . 2 . . . . 1 . 5 6 2 . . . 4 2 2 . 5 2 11 6 . Programmer 97 | . . . . . 2 . 1 . 2 3 . 2 . . 3 . 4 1 . . 1 1 2 1 . 2 . . . 2 3 3 5 7 15 4 17 5 11 Heavy 3 | . . . . . . . . . . . . . . . . . . . . . . . . . . . . . . . . . . . 1 . 1 1 . Q-Series 7 | . . . . . . . . . . . . . . . . . . . . . . . . . . . . . . . . . . . . . . 7 . Behemoth 10 | . . . . . . . . . . . . . . . 1 . 1 . . . 1 . . . 1 . 1 . . . . . . 4 . . . . 1 Compactor 8 | . . . . . . . . . . . . . 2 . . . . . 6 . . . . . . . . . . . . . . . . . . . . Cetus Guard 3 | . . . . . . . . . . . . . . . . . . . . . . . . . . . . 3 . . . . . . . . . . . S7 Guard 2 | . . . . . . . . . . . . . . . . . . . . . . . . . . . . . . . . . . . . . 2 . . M Guard 2 | . . . . . . . . . . . . . . . . . . . . . . . . . . . . . . . . . . . . . . . 2 Enhanced Q-Series 27 | . . . . . . . . . . . . . . . . . . . . . . . . . . . . . . . . . . . . . . . 27 Lightning 3 | . . . . . . . . . . . . . . . . . . . . . . . . . . . . . . 3 . . . . . . . . . Tracker 8 | . . . . . . . . . . . . . . . . . . . . . . . . . . . . . . . . . . . . . 4 4 . Combat Programmer 11 | . . . . . . . . . . . . . . . . . . . . . . . . . . . . . . . . . . . . . 5 4 2 Striker 1 | . . . . . . . . . . . . . . . . . . . . . . . . . . . . . . . . 1 . . . . . . . Executioner 2 | . . . . . . . . . . . . . . . . . . . . . . . . . . . . . . . . . . . . . 2 . . Protovariant X 1 | . . . . . . . . . . . . . . . . . . . . . . . . . . . . . . . . . 1 . . . . . . Assembled 1 | . . . . . . . . . . 1 . . . . . . . . . . . . . . . . . . . . . . . . . . . . . Thug 1 | . . . . . . . . . . . . . . . . . . . 1 . . . . . . . . . . . . . . . . . . . . Infiltrator 1 | . . . . . . . . . . . . . . . . . . . . . . . . 1 . . . . . . . . . . . . . . . Revision 1 | . . . . . . . . . . . . . . . . . . . . . . . . . . . . . . . . 1 . . . . . . . Best Kill Streak 12 | 4 5 3 5 5 5 4 4 7 4 4 5 6 1 2 5 4 4 6 1 1 5 3 8 2 4 7 6 2 . 3 9 3 8 7 9 3 12 11 11 Combat Bots Only 11 | . 5 2 5 4 5 3 4 5 4 4 5 3 1 2 5 4 4 4 1 1 5 2 8 2 4 4 6 2 . 2 9 3 5 7 7 2 9 5 11 Max Kills in Single Turn 6 | 1 2 1 3 1 2 2 2 3 3 2 2 1 1 1 3 1 3 3 1 1 2 2 3 1 2 3 2 1 . 2 3 2 3 2 3 1 2 6 3 Gunslinging 2 | . 1 . . . 1 . 1 . 1 . 1 . . . 2 . 1 . . . 1 . 2 . 1 1 . . . . 2 1 1 1 1 . 1 1 2 Exploded 3 | . . . 3 . 1 . 2 . 3 . 2 . . . 1 . 3 1 . . . . . . . . 2 . . . . . . . . . 1 1 . Melee 1 | . . . . . . . . . . . . . . . . . . . . . . . . . . . . . . . . . . . . . . . 1 Uniques/NPCs Destroyed 2 | . . . . . . . . . . . . . . . . . . . . . . . . . . . . 1 . . . . . . . . . . 1 A7 (-4/Cetus) MAIN.C Shell (-1/Command) Combat | -11 -10 -10 -9 -9 -9 -8 -8 -8 -8 -7 -7 -6 -6 -6 -6 -6 -6 -5 -5 -5 -5 -5 -5 -4 -4 -4 -4 -4 -4 -4 -4 -3 -3 -3 -2 -2 -2 -1 -1 -------- Run | Yrd Mat Min Mat Sto Gar Mat Gar Mat Gar Fac Gar Fac Was Fac Gar Fac Gar Fac Was Fac Gar Fac Gar Fac Gar Fac Ext Cet Arc Hub Gar Res Tes Gar Res Qua Sec Acc Com Hostile Shots Fired 3686 | . 60 33 134 48 81 4 38 61 80 162 193 57 . 15 316 50 174 29 . 2 67 5 40 10 161 39 128 22 . 68 184 18 70 155 129 69 546 301 137 Missed 1033 | . 19 10 26 18 19 1 11 19 21 70 69 13 . 3 89 22 42 6 . 1 20 1 7 2 47 16 42 8 . 22 52 5 22 36 29 17 130 81 37 Intercepted 11 | . . . . . . . . . . . . . . . . . . . . . . . . . . . . . . . . . . . . . . 8 3 Hits 2653 | . 41 23 108 30 62 3 27 42 59 92 124 44 . 12 227 28 132 23 . 1 47 4 33 8 114 23 86 14 . 46 132 13 48 119 100 52 416 220 100 Melee 30 | . . . 5 4 . . . 1 2 . . . . . 2 . 2 . . . . . . . 11 . . . . . 1 . . . . . 2 . . Projectile 2623 | . 41 23 103 26 62 3 27 41 57 92 124 44 . 12 225 28 130 23 . 1 47 4 33 8 103 23 86 14 . 46 131 13 48 119 100 52 414 220 100 AOE 26 | . . . . . . . . . 1 . . . . . 4 . 5 . . . . . . . . . . . . . . . . . . . 2 9 5 Critical Strikes 101 | . . 2 3 1 1 . 1 1 4 4 1 1 . 1 5 3 1 . . . 2 . 2 . 8 . 3 7 . 6 3 . 4 7 7 4 12 2 5 Actively Blocked 11 | . . . . . . . . . . . . . . . . . . . . . . . . . . . . . . . . . . 3 . . 3 2 3 Part Disruptions 14 | . . . . . 1 . . . . 1 . . . . . . . . . . . . . . . . . . . . . . 2 1 5 2 . 2 . Damage Taken 32838 | . 480 244 1384 462 662 23 370 603 707 1049 987 463 . 166 2770 326 2073 447 22 18 705 65 485 156 1598 311 1417 332 . 223 1418 413 879 1769 1534 859 4251 1632 1535 Core 2632 | . 75 30 144 76 109 6 22 53 83 66 87 11 . 15 245 . 111 23 . . . . 28 . 102 51 39 18 . 16 53 25 . 51 60 85 380 92 476 Absorbed by Shields 11341 | . . . . . . . . . 35 28 384 178 . 60 752 . 73 . . 6 257 8 133 60 570 114 522 120 . 50 760 . . 1022 480 372 2899 1309 1149 Reduced by Siege Mode 975 | . . . . . . . . . . . . . . 16 102 . 86 . . . 30 . 23 . 15 . 50 . . 13 29 . . 84 146 . 218 140 23 Ignored by Resistances 7052 | . . . . . . . . . . . . . . . . 25 . . . . . . . . . . . . . 794 113 . 162 127 912 90 3194 663 972 Regen/Repaired (Parts) 5087 | . . . 309 . . . . 83 . . . . . . 765 21 . . . . 8 . . . . . 359 1 . . . . 181 567 407 369 1399 355 263 Core Remaining (%) 69 | 100 . 58 . . 17 . . . 70 . 78 . . . . . 55 . . . . . 94 . . . . . . . 75 . . 94 . . 63 . 64 Volleys Fired 2536 | 9 73 24 96 66 59 19 60 71 65 55 62 67 43 16 128 20 78 48 47 4 60 7 49 3 65 30 57 22 14 38 86 91 49 97 82 59 187 174 256 Largest 6 | 2 2 2 3 3 3 3 3 3 3 3 3 4 3 4 4 4 4 4 4 4 4 4 4 4 4 4 4 4 4 4 4 4 4 4 5 5 5 6 3 Hottest 221 | 60 120 120 140 107 107 107 107 112 112 111 76 101 78 98 192 197 221 221 175 175 180 180 180 180 180 136 143 143 133 138 138 145 148 148 181 201 176 209 100 Shots Fired 7369 | 18 130 41 278 180 135 47 100 212 123 146 164 165 107 61 404 60 214 129 131 10 211 29 133 12 202 96 203 70 20 132 306 145 130 305 307 152 713 586 762 Gun 6771 | 18 85 . 211 180 131 44 93 212 118 138 157 131 100 61 379 57 201 110 125 8 206 29 133 12 190 88 198 66 8 130 301 73 110 279 282 114 667 566 760 Cannon 353 | . 30 34 62 . . . . . . 6 5 31 . . 16 . . 11 . 2 2 . . . 5 8 . 4 12 2 4 67 3 . 9 20 13 5 2 Launcher 60 | . . . 4 . 4 3 7 . 5 . 2 . . . . . 6 . . . . . . . . . 1 . . . . . 4 . . . 15 9 . Special 185 | . 15 7 1 . . . . . . 2 . 3 7 . 9 3 7 8 6 . 3 . . . 7 . 4 . . . 1 5 13 26 16 18 18 6 . Kinetic 6137 | 9 29 . 107 114 80 30 42 142 63 139 162 162 100 61 361 47 136 77 124 6 156 22 89 9 176 88 198 66 8 130 301 73 113 279 291 134 680 571 762 Thermal 995 | 9 101 41 167 66 51 14 51 70 55 5 . . . . 34 10 65 40 1 4 52 7 44 3 14 8 . 3 12 2 . 66 . . . . . . . Explosive 32 | . . . 4 . 4 3 7 . 5 . 2 . . . . . 6 . . . . . . . . . 1 . . . . . . . . . . . . Electromagnetic 43 | . . . . . . . . . . . . . . . . . . 4 . . . . . . 5 . . 1 . . 4 1 4 . . . 15 9 . Robot Hit Streak 115 | 4 21 7 12 23 12 4 14 13 7 23 15 16 9 23 23 9 14 24 15 8 23 6 19 12 17 14 38 9 6 8 36 17 22 22 32 17 50 115 85 Robot Miss Streak 9 | 2 3 4 6 3 4 4 3 9 4 5 6 4 3 2 4 5 6 6 4 . 5 4 3 1 5 3 2 4 1 8 3 3 2 6 4 4 6 9 5 Penetration Max 2 | . . . . . . . . 1 1 . . . . . 1 . 1 . . . 1 1 1 . 1 2 1 1 . 1 1 1 2 2 2 . 2 2 . Secondary Targets 137 | . 2 . 1 1 4 . 3 3 5 . 7 2 . 1 7 4 6 2 2 . 8 . 6 . 4 2 5 2 . 2 7 2 1 7 6 . 10 8 17 Max Gunslinging Chain 3 | . 1 . 1 1 1 . 1 1 1 . 2 1 . 1 3 1 1 1 1 . 2 . 2 . 1 1 1 1 . 1 2 1 1 1 1 . 1 2 2 Shots Hit Robots 4730 | 9 83 19 149 124 76 20 41 123 52 88 110 97 83 46 240 33 118 86 98 6 139 12 70 8 137 56 161 38 7 70 193 43 88 195 188 83 452 396 693 Core Hits 2499 | 7 39 8 69 57 45 14 27 71 32 41 75 62 19 22 95 16 81 79 21 4 68 7 38 3 47 41 87 25 2 30 79 18 44 84 94 34 231 276 407 Critical Kills 104 | . . . 2 1 . . . 1 . . . . . . . . . . 1 . 4 1 . . 4 6 5 2 . 4 8 4 12 11 14 1 13 10 . Critical Parts Destroyed 134 | . . . . . . . . 1 . . . . . 2 3 . 2 1 . . 1 . . . 8 5 14 3 . 2 14 5 6 14 10 4 28 10 1 Critical Strikes 307 | . . . 8 8 5 1 1 8 2 2 . . 1 2 3 . 3 2 4 . 7 1 . . 14 11 19 5 . 6 22 13 20 34 24 5 49 24 3 Burn 34 | . . . 6 7 5 1 1 6 2 2 . . . . . . 1 1 . . 2 . . . . . . . . . . . . . . . . . . Meltdown 2 | . . . 1 . . . . . . . . . . . . . . . . . . . . . . . . 1 . . . . . . . . . . . Destroy 271 | . . . 1 1 . . . 2 . . . . 1 2 3 . 2 1 4 . 5 1 . . 14 11 19 4 . 6 22 13 20 34 24 5 49 24 3 Melee Attacks 2 | . . . . . . . . . . . . . . . . . . . . . . . . . . . . . . . . . . . . . 2 . . Kinetic 2 | . . . . . . . . . . . . . . . . . . . . . . . . . . . . . . . . . . . . . 2 . . Impact . | . . . . . . . . . . . . . . . . . . . . . . . . . . . . . . . . . . . . . . . . Slashing . | . . . . . . . . . . . . . . . . . . . . . . . . . . . . . . . . . . . . . . . . Piercing . | . . . . . . . . . . . . . . . . . . . . . . . . . . . . . . . . . . . . . . . . Sneak Attacks 1 | . . . . . . . . . . . . . . . . . . . . . . . . . . . . . . . . . . . . . 1 . . Combat Hostiles 1 | . . . . . . . . . . . . . . . . . . . . . . . . . . . . . . . . . . . . . 1 . . Follow-up Attacks . | . . . . . . . . . . . . . . . . . . . . . . . . . . . . . . . . . . . . . . . . Damage Inflicted 130683 | 101 1141 339 2979 2309 1781 425 1086 2335 1775 1521 2287 1788 1438 742 4467 844 4234 2172 2214 120 3526 435 1705 198 2723 1412 3845 1442 165 1635 4558 1091 2357 4646 5375 2092 13997 13390 29993 Guns 119939 | 101 709 . 1873 2251 1407 367 687 2310 950 1483 1918 1750 1429 742 4374 827 3102 1794 2214 120 3526 435 1705 198 2518 1379 3184 1306 165 1630 4422 1090 2047 4646 5208 1822 12285 12530 29435 Cannons 2157 | . 384 332 663 . . . . . . . . . . . 93 . . 100 . . . . . . 205 . . 136 . . 131 . . . . 113 . . . Explosions 7042 | . . . 387 . 374 30 399 . 825 . 369 . . . . . 1132 262 . . . . . . . . 650 . . . . . 283 . . 46 1483 802 . Melee 84 | . . . . . . . . . . . . . . . . . . . . . . . . . . . . . . . . . . . . . 84 . . Ramming 1461 | . 48 7 56 58 . 28 . 25 . 38 . 38 9 . . 17 . 16 . . . . . . . 33 11 . . 5 5 1 27 . 167 111 145 58 558 Kinetic 111676 | 37 261 . 818 1351 867 223 362 1290 607 1383 1918 1750 1429 742 4173 600 2231 1165 2214 73 2703 363 1319 147 2304 1379 3184 1306 165 1630 4422 1090 2047 4646 5208 1935 12369 12530 29435 Thermal 10532 | 64 832 332 1718 900 540 144 325 1020 343 100 . . . . 294 227 871 891 . 47 823 72 386 51 214 . . 100 . . . . . . . . 208 30 . Explosive 4212 | . . . 387 . 374 30 399 . 825 . 369 . . . . . 1132 . . . . . . . . . 650 . . . . . . . . 46 . . . Electromagnetic 2802 | . . . . . . . . . . . . . . . . . . 100 . . . . . . 205 . . 36 . . 131 . 283 . . . 1275 772 . Impact . | . . . . . . . . . . . . . . . . . . . . . . . . . . . . . . . . . . . . . . . . Slashing . | . . . . . . . . . . . . . . . . . . . . . . . . . . . . . . . . . . . . . . . . Piercing . | . . . . . . . . . . . . . . . . . . . . . . . . . . . . . . . . . . . . . . . . Highest Corruption 35 | . . . . . 1 . . . . 1 1 1 21 21 26 26 35 1 2 2 2 3 5 . . . 2 2 2 5 12 . 2 7 5 7 22 4 4 Average Corruption 7 | . . . . . 1 . . . . 1 1 1 17 21 25 26 28 1 1 2 2 2 4 . . . 2 2 2 3 6 . 1 2 3 5 7 3 3 Corruption Purged 6 | . . . . . . . . . . . . . . . . . . . . . . . . . . . . . . . . . 2 . . . . . 4 Corruption Blocked . | . . . . . . . . . . . . . . . . . . . . . . . . . . . . . . . . . . . . . . . . Effects 802 | . . . . . 1 . . . . 2 9 6 24 21 108 27 101 6 7 3 17 6 23 . . . 23 4 3 24 49 . 5 24 33 50 112 76 38 Message Errors 174 | . . . . . 1 . . . . . 2 2 4 4 26 5 13 1 2 . 5 1 3 . . . 10 . 1 7 13 . 1 8 5 12 27 17 4 Matter Fused 162 | . . . . . . . . . . . 1 1 9 1 15 4 19 2 1 1 3 . 4 . . . 4 2 . 5 12 . 1 4 9 13 24 19 8 Heat Flow Errors 88 | . . . . . . . . . . 1 1 . 2 3 10 4 14 1 . . . 2 3 . . . 2 1 . 2 4 . 1 2 3 4 9 11 8 Energy Discharges 99 | . . . . . . . . . . . 3 1 1 2 17 2 14 1 . . 5 2 7 . . . 4 . . 3 3 . . 2 4 11 12 1 4 Parts Rejected 6 | . . . . . . . . . . . . . . 1 . . . . . . . . . . . . . . . 1 . . . . . . 2 2 . Parts Fused 8 | . . . . . . . . . . . . . . . 3 . 2 . . . 1 . 1 . . . . . . . . . . . . . 1 . . Data Loss (minor) 80 | . . . . . . . . . . . 1 1 2 1 5 2 8 1 1 1 . . 3 . . . 1 . 1 2 7 . . 5 4 3 15 9 7 Data Loss (major) 32 | . . . . . . . . . . . 1 . . 1 2 2 2 . . . 1 . . . . . 1 . 1 3 2 . 2 1 3 2 3 4 1 Misfires 35 | . . . . . . . . . . . . . . 1 6 . 8 . 2 . 1 1 1 . . . . . . . 1 . . 1 2 1 4 4 2 Alerts 20 | . . . . . . . . . . . . . . 1 4 2 3 . . 1 . . . . . . . . . . 1 . . 1 . 2 4 1 . Misdirections 9 | . . . . . . . . . . . . . 2 2 3 . 1 . . . . . . . . . . . . . . . . . . . 1 . . Weapon Failures 89 | . . . . . . . . . . 1 . 1 4 4 17 6 17 . 1 . 1 . 1 . . . 1 1 . 1 6 . . . 3 2 10 8 4 Overload Shots . | . . . . . . . . . . . . . . . . . . . . . . . . . . . . . . . . . . . . . . . . Overflow Damage 255 | . 8 . 61 . . . . . 82 . . . . . . . 36 . . . . . . . . . 13 . . . . . . . 5 44 . . 6 Projectiles 8 | . 8 . . . . . . . . . . . . . . . . . . . . . . . . . . . . . . . . . . . . . . Explosions 192 | . . . 61 . . . . . 82 . . . . . . . 36 . . . . . . . . . 13 . . . . . . . . . . . . Melee 55 | . . . . . . . . . . . . . . . . . . . . . . . . . . . . . . . . . . . 5 44 . . 6 Knockbacks 16 | . . . . 1 . 1 . 1 . . . 1 . . . . . . . . . . . . . 1 . . . . . . . . 1 . . . 10 Impact 16 | . . . . 1 . 1 . 1 . . . 1 . . . . . . . . . . . . . 1 . . . . . . . . 1 . . . 10 Kinetic . | . . . . . . . . . . . . . . . . . . . . . . . . . . . . . . . . . . . . . . . . Secondary . | . . . . . . . . . . . . . . . . . . . . . . . . . . . . . . . . . . . . . . . . Self-Inflicted Damage 233 | . . . 62 . . . 23 . 29 . . . . . . . 102 . . . . . . . . . . . . . . . . . . . . 17 . Shots 10 | . . . 2 . . . 1 . 1 . . . . . . . 4 . . . . . . . . . . . . . . . . . . . . 2 . Rammed 127 | . 4 2 8 6 . 1 . 4 . 3 . 3 1 . . 1 . 3 . . . . . . . 3 1 . . 2 1 1 1 . 8 5 12 8 49 Targets Rammed 145 | . 12 3 8 7 . 1 . 4 . 3 . 4 1 . . 1 . 3 . . . . . . . 3 1 . . 2 1 1 2 . 8 6 12 10 52 Kicked 7 | . 7 . . . . . . . . . . . . . . . . . . . . . . . . . . . . . . . . . . . . . . Crushed 11 | . 1 1 . 1 . . . . . . . 1 . . . . . . . . . . . . . . . . . . . . 1 . . 1 . 2 3 Highest Temperature 408 | . 156 165 282 18 18 . 45 20 . 140 188 12 203 195 301 237 408 303 344 68 246 169 294 240 376 85 240 138 54 346 177 92 246 115 192 160 297 195 218 Average Temperature 67 | . 35 40 65 10 9 . 24 7 . 30 102 8 68 60 69 89 119 88 97 33 92 79 96 131 95 29 21 25 27 107 16 34 42 46 61 17 51 76 122 Received Heat Transfer 5075 | . 213 84 450 120 105 . 90 252 126 106 257 80 . 80 663 124 366 63 9 . 155 . 122 8 391 6 309 . . 9 87 9 175 175 26 20 174 149 72 Effects 13 | . . . . . . . . . . . . . . . . . . 1 1 . . . . . 4 . . . . 6 . . . . . . 1 . . Shutdowns 1 | . . . . . . . . . . . . . . . . . . . . . . . . . 1 . . . . . . . . . . . . . . Energy Bleed 3 | . . . . . . . . . . . . . . . . . . 1 1 . . . . . . . . . . . . . . . . . 1 . . Interference 9 | . . . . . . . . . . . . . . . . . . . . . . . . . 3 . . . . 6 . . . . . . . . . Siege Activations 80 | . . . . . . . . . . . . . . 3 8 1 7 1 . 1 5 . 3 . 4 . 4 . . 2 6 1 3 3 8 . 9 8 3 Total Turns 1655 | . . . . . . . . . . . . . . 44 119 10 89 37 . 3 51 . 48 . 154 . 89 . . 94 86 29 21 66 112 . 171 368 64 Longest Duration 124 | . . . . . . . . . . . . . . 20 22 10 23 37 . 3 14 . 22 . 124 . 35 . . 87 29 29 14 32 46 . 49 89 44 Martial Activations . | . . . . . . . . . . . . . . . . . . . . . . . . . . . . . . . . . . . . . . . . Shielding Activations . | . . . . . . . . . . . . . . . . . . . . . . . . . . . . . . . . . . . . . . . . Robots Disrupted . | . . . . . . . . . . . . . . . . . . . . . . . . . . . . . . . . . . . . . . . . Combat Hostiles . | . . . . . . . . . . . . . . . . . . . . . . . . . . . . . . . . . . . . . . . . Robots Corrupted 15 | . . . . . . . . . . . . . . . . . . . . . . . . . 2 . . . . . 1 . 2 . 1 . 6 3 . Combat Hostiles 14 | . . . . . . . . . . . . . . . . . . . . . . . . . 2 . . . . . 1 . 2 . . . 6 3 . Parts Fried 34 | . . . . . . . . . . . . . . . . . . 3 1 . . . . . 1 . . . . . 2 . 6 . 2 1 12 6 . Impact Corruptions 3 | . . . . . . . . . . . . . . . . . . . . . . . . . . . . . . . . . . . 1 1 . . 1 Robots Melted 2 | . . . 1 . . . . . . . . . . . . . . . . . . . . . . . . 1 . . . . . . . . . . . Combat Hostiles 1 | . . . 1 . . . . . . . . . . . . . . . . . . . . . . . . . . . . . . . . . . . . Parts Melted 37 | . 2 1 9 1 . 1 2 3 2 . . . . . . 1 3 2 . . 1 . 1 . . . . 4 . . . 1 1 1 . . 1 . . Heat Transferred 20391 | 150 1839 703 4033 2109 1198 333 629 2294 740 333 . . . . 351 296 1069 1468 . 74 1406 111 592 74 333 . . 56 . . . . . . . . 150 50 . Parts Sabotaged 2 | . . . . . . . . . . . . . . . . . . . . . . . . . . . . . . . 2 . . . . . . . . Parts Stolen . | . . . . . . . . . . . . . . . . . . . . . . . . . . . . . . . . . . . . . . . . Parts Stripped 8 | . . . . . . . . . . . . . . . . . . . . . . . . . . . . . . . . . . . . . 8 . . Power Chain Reactions 6 | . . . . . . . . . . . . . . . . . . 1 . . . . . . . . . . . . . . . . . . 2 3 . Alert | -11 -10 -10 -9 -9 -9 -8 -8 -8 -8 -7 -7 -6 -6 -6 -6 -6 -6 -5 -5 -5 -5 -5 -5 -4 -4 -4 -4 -4 -4 -4 -4 -3 -3 -3 -2 -2 -2 -1 -1 ------- Run | Yrd Mat Min Mat Sto Gar Mat Gar Mat Gar Fac Gar Fac Was Fac Gar Fac Gar Fac Was Fac Gar Fac Gar Fac Gar Fac Ext Cet Arc Hub Gar Res Tes Gar Res Qua Sec Acc Com Maximum Alert Level 4 | . . . 1 1 4 2 2 2 3 1 2 1 . . 2 1 3 1 . . 2 1 2 1 2 1 . . . . 2 1 . 2 1 . 2 1 . Low Security (%) 55 | 100 100 100 87 43 4 50 18 44 . 24 2 78 100 100 28 . 17 . 100 100 31 27 7 . 34 94 100 100 100 100 26 73 100 35 . 100 71 84 100 Level 1 27 | . . . 12 56 13 27 73 42 22 75 27 21 . . 46 100 7 99 . . 22 72 39 100 35 5 . . . . 16 26 . 26 100 . 13 15 . Level 2 14 | . . . . . 23 21 7 12 53 . 70 . . . 25 . 67 . . . 46 . 53 . 30 . . . . . 56 . . 37 . . 14 . . Level 3 1 | . . . . . 36 . . . 23 . . . . . . . 6 . . . . . . . . . . . . . . . . . . . . . . Level 4 . | . . . . . 21 . . . . . . . . . . . . . . . . . . . . . . . . . . . . . . . . . . Level 5 . | . . . . . . . . . . . . . . . . . . . . . . . . . . . . . . . . . . . . . . . . High Security . | . . . . . . . . . . . . . . . . . . . . . . . . . . . . . . . . . . . . . . . . Max Security . | . . . . . . . . . . . . . . . . . . . . . . . . . . . . . . . . . . . . . . . . Peak Influence 1194 | 10 120 90 283 313 1194 581 534 425 761 399 633 331 5 54 517 293 713 376 82 22 548 287 500 377 436 228 123 86 14 71 610 342 70 679 381 142 584 348 152 Initial 581 | . . 8 2 117 170 581 . 260 234 399 154 331 5 . 2 270 160 373 82 . . 287 132 262 152 228 17 53 . . . 342 . 7 381 123 . 348 152 Average 215 | 4 37 13 119 203 752 239 234 243 522 261 459 114 . 14 289 256 514 282 15 2 327 225 376 300 281 80 25 32 1 12 350 105 9 303 258 26 169 156 49 Influence Increases 18216 | 30 539 198 1157 785 1044 171 534 1033 527 347 489 188 . 109 645 167 693 317 4 36 558 82 428 186 554 304 509 173 16 352 650 175 282 909 553 390 1720 932 430 Destroy 0b10 Robot/C 9968 | . 320 140 660 380 600 80 340 620 330 225 321 96 . 72 384 108 420 96 . 12 324 40 260 50 270 160 290 80 . 140 460 90 160 430 340 130 820 430 290 Destroy 0b10 Robot/NC 915 | 30 45 5 65 65 . 25 . 75 4 16 . 21 . 3 6 3 3 45 . . 15 6 . 6 . 30 12 6 3 9 . 6 18 6 57 33 63 174 60 Destroy Leader 1756 | . 76 20 196 154 30 24 10 162 24 90 14 32 . 14 24 30 24 46 . 6 36 10 35 6 30 37 37 . . 40 25 30 20 25 68 22 188 125 46 Allied During Kill 855 | . . . . . . . . . . . . . . . 2 . 16 10 . . 61 20 28 13 46 38 101 83 3 93 . 2 7 119 10 46 131 26 . Successful Hack 449 | . 13 . 39 50 14 5 14 49 9 . 9 21 . . 9 . . 24 . 10 10 . 7 7 4 4 15 . . . . 6 7 . . 37 51 21 14 Select Force Hacks 150 | . 30 . 60 60 . . . . . . . . . . . . . . . . . . . . . . . . . . . . . . . . . . . Disable Machine 630 | . . . 60 45 . 15 . 15 . . . . . . . 18 9 27 . . 9 . . 64 . . 16 . 8 24 40 . 56 . 8 40 160 8 8 Anti-Garrison Action 1550 | . . . . . 300 . 150 . 75 . 90 . . . 180 . 150 . . . 55 . 50 . 100 . . . . . 100 . . 225 . . 75 . . Destroy Structure 1069 | . 10 3 32 1 10 22 20 7 49 4 37 18 . 2 22 8 71 60 4 8 30 6 48 40 8 11 38 4 2 46 9 33 6 24 54 82 168 60 12 Partial Spotted 57 | . . . . . . . . 15 . . . . . . 18 . . . . . . . . . . . . . . . . 8 . . . . . 16 . Lose Combat Pursuer 817 | . 45 30 45 30 90 . . 90 36 12 18 . . 18 . . . 9 . . 18 . . . 96 24 . . . . 16 . 8 80 16 . 64 72 . Influence Decreases 18092 | 30 517 212 888 800 112 1365 . 1206 127 888 76 804 17 105 132 455 209 794 240 36 10 441 117 468 336 704 449 269 16 352 40 785 272 240 1011 611 1139 1274 545 Entered New Map 4719 | . . 14 6 160 92 613 . 274 127 362 66 302 12 . 2 247 69 340 154 . . 261 57 238 66 208 19 43 . . . 268 . 3 298 98 . 233 87 Time Decay 10232 | 30 507 188 707 640 . 602 . 639 . 526 . 492 5 105 . 198 . 404 86 36 . 180 . 230 . 456 343 136 16 211 . 497 248 . 583 345 662 702 458 Lost Part 336 | . 10 10 50 . 20 . . . . . 10 10 . . 60 . 60 10 . . . . . . 30 . 10 10 . . . . . 17 . 10 10 9 . Lost Ally 1430 | . . . . . . . . . . . . . . . 70 10 80 40 . . 10 . 60 . 240 40 77 80 . 141 40 20 24 220 130 26 92 30 . Purge Threat 1375 | . . . 125 . . 150 . 293 . . . . . . . . . . . . . . . . . . . . . . . . . . . 132 375 300 . Squads Dispatched 117 | . 5 . 3 2 . 1 . 4 . 9 . 6 . 1 . 3 . 3 . . . . . . . 10 4 . . 3 . 4 6 . 7 3 25 14 4 Investigation 14 | . 3 . 3 2 . . . 1 . . . . . . . 1 . . . . . . . . . 1 1 . . . . 2 . . . . . . . Extermination 33 | . . . . . . . . . . 3 . 2 . . . . . 2 . . . . . . . 1 . . . 1 . . 2 . 4 3 6 5 4 Reinforcement 40 | . 2 . . . . 1 . 3 . 1 . 4 . 1 . . . 1 . . . . . . . 5 3 . . 2 . 2 3 . 3 . 6 3 . Assault 2 | . . . . . . . . . . . . . . . . . . . . . . . . . . . . . . . . . . . . . 2 . . Garrison 15 | . . . . . . . . . . 5 . . . . . 2 . . . . . . . . . 3 . . . . . . 1 . . . 4 . . Intercept 13 | . . . . . . . . . . . . . . . . . . . . . . . . . . . . . . . . . . . . . 7 6 . Searches Triggered . | . . . . . . . . . . . . . . . . . . . . . . . . . . . . . . . . . . . . . . . . Construction Impeded 4 | . . . . . . 1 . . . . . . . . . . . . . . . . . . . 1 1 . . . . . 1 . . . . . . Haulers Reinforced 9 | . . . . . . . . . . . . 1 . 1 . . . . . . . . . . . 3 . . . . . 1 . . . . 1 2 . Active Scanning Responses . | . . . . . . . . . . . . . . . . . . . . . . . . . . . . . . . . . . . . . . . . Cargo Convoy Interrupts . | . . . . . . . . . . . . . . . . . . . . . . . . . . . . . . . . . . . . . . . . Stealth | -11 -10 -10 -9 -9 -9 -8 -8 -8 -8 -7 -7 -6 -6 -6 -6 -6 -6 -5 -5 -5 -5 -5 -5 -4 -4 -4 -4 -4 -4 -4 -4 -3 -3 -3 -2 -2 -2 -1 -1 --------- Run | Yrd Mat Min Mat Sto Gar Mat Gar Mat Gar Fac Gar Fac Was Fac Gar Fac Gar Fac Was Fac Gar Fac Gar Fac Gar Fac Ext Cet Arc Hub Gar Res Tes Gar Res Qua Sec Acc Com Distress Signals 64 | . 2 1 5 2 . . . 6 . 2 . 1 . 2 . . . 2 . . . . . . . . 5 2 . 1 . 10 5 . 1 1 4 4 8 Communications Jammed 218 | . . . . . . . . . . . . . . . . . . . . . . . . . . . . . . . . . 2 . 63 2 61 84 6 Distress Signals 186 | . . . . . . . . . . . . . . . . . . . . . . . . . . . . . . . . . 2 . 55 2 45 76 6 Times Spotted 1078 | . 34 8 60 31 32 10 15 46 19 22 27 10 6 10 38 11 40 16 6 2 29 4 20 6 36 16 34 9 . 16 52 19 34 54 54 21 100 62 69 Peak Tracking Total 9 | . 5 3 6 5 6 5 3 7 5 4 6 4 2 5 6 4 7 3 2 2 5 3 6 2 8 4 6 5 . 3 7 7 6 7 7 4 8 8 9 Tactical Retreats 57 | . 2 1 3 1 6 . . 4 1 1 2 . . 1 . . . 1 . . 1 . . . 6 3 . . . . 2 . 1 7 1 . 8 5 . Traps | -11 -10 -10 -9 -9 -9 -8 -8 -8 -8 -7 -7 -6 -6 -6 -6 -6 -6 -5 -5 -5 -5 -5 -5 -4 -4 -4 -4 -4 -4 -4 -4 -3 -3 -3 -2 -2 -2 -1 -1 ------- Run | Yrd Mat Min Mat Sto Gar Mat Gar Mat Gar Fac Gar Fac Was Fac Gar Fac Gar Fac Was Fac Gar Fac Gar Fac Gar Fac Ext Cet Arc Hub Gar Res Tes Gar Res Qua Sec Acc Com Traps Triggered 74 | . 2 . 1 . 3 . 7 . 8 . 10 1 . . 2 . 6 1 . . 3 . 2 . 2 . 3 . . 4 1 2 3 4 . 1 5 . 3 Indirectly 4 | . . . . . . . . . . . . . . . . . . . . . . . . . . . . . . . . . . . . . 4 . . Trap Hack Attempts 20 | . . . 18 . 2 . . . . . . . . . . . . . . . . . . . . . . . . . . . . . . . . . . Triggered . | . . . . . . . . . . . . . . . . . . . . . . . . . . . . . . . . . . . . . . . . Disarmed 1 | . . . . . 1 . . . . . . . . . . . . . . . . . . . . . . . . . . . . . . . . . . Reprogrammed 3 | . . . 3 . . . . . . . . . . . . . . . . . . . . . . . . . . . . . . . . . . . . Reused . | . . . . . . . . . . . . . . . . . . . . . . . . . . . . . . . . . . . . . . . . Traps Extracted . | . . . . . . . . . . . . . . . . . . . . . . . . . . . . . . . . . . . . . . . . Installed . | . . . . . . . . . . . . . . . . . . . . . . . . . . . . . . . . . . . . . . . . Triggered . | . . . . . . . . . . . . . . . . . . . . . . . . . . . . . . . . . . . . . . . . Machines | -11 -10 -10 -9 -9 -9 -8 -8 -8 -8 -7 -7 -6 -6 -6 -6 -6 -6 -5 -5 -5 -5 -5 -5 -4 -4 -4 -4 -4 -4 -4 -4 -3 -3 -3 -2 -2 -2 -1 -1 ---------- Run | Yrd Mat Min Mat Sto Gar Mat Gar Mat Gar Fac Gar Fac Was Fac Gar Fac Gar Fac Was Fac Gar Fac Gar Fac Gar Fac Ext Cet Arc Hub Gar Res Tes Gar Res Qua Sec Acc Com Machines Disabled 107 | . . . 4 3 5 1 1 1 . . 1 . . . 3 2 6 3 . . 4 . 2 8 2 . 2 . 1 3 8 . 7 10 1 6 21 1 1 Max in Single Turn 2 | . . . 1 1 1 1 1 1 . . 1 . . . 1 1 1 2 . . 1 . 1 . 1 . 1 . 1 1 1 . 1 2 . 2 2 1 1 Garrison Access 8 | . . . . . . . . . . . . . . . . . . . . . . . . . . 1 . . . . . 2 . . 2 1 1 1 . Garrison Relay 27 | . . . . . 4 . 1 . . . 1 . . . 2 . 3 . . . 2 . 2 . 2 . . . . . 3 . . 7 . . . . . Phase Generator 1 | . . . . . . . . . . . . . . . . . . . . . . . . . 1 . . . . . . . . . . . . . . Network Hub 2 | . . . . . . . . . . . . . . . . . . . . . . . . . . . . . . 2 . . . . . . . . . Machines Repaired . | . . . . . . . . . . . . . . . . . . . . . . . . . . . . . . . . . . . . . . . . Machines Dismantled 3 | . . . . . . . . . . . . . . . . . . . . . . . . . . . 1 . . 2 . . . . . . . . . Machines Sabotaged . | . . . . . . . . . . . . . . . . . . . . . . . . . . . . . . . . . . . . . . . . Overloaded Fab Kills . | . . . . . . . . . . . . . . . . . . . . . . . . . . . . . . . . . . . . . . . . Hacking | -11 -10 -10 -9 -9 -9 -8 -8 -8 -8 -7 -7 -6 -6 -6 -6 -6 -6 -5 -5 -5 -5 -5 -5 -4 -4 -4 -4 -4 -4 -4 -4 -3 -3 -3 -2 -2 -2 -1 -1 --------- Run | Yrd Mat Min Mat Sto Gar Mat Gar Mat Gar Fac Gar Fac Was Fac Gar Fac Gar Fac Was Fac Gar Fac Gar Fac Gar Fac Ext Cet Arc Hub Gar Res Tes Gar Res Qua Sec Acc Com Machines Accessed 152 | . 5 2 15 13 3 3 2 13 2 4 2 5 . 2 2 2 1 3 . 2 2 2 1 4 3 5 5 . . 6 1 4 5 . 4 10 11 6 2 Terminals 113 | . 4 1 11 10 3 2 2 10 2 3 2 3 . . 2 1 1 3 . . 2 1 1 1 3 4 5 . . 5 1 2 3 . 2 7 9 5 2 Fabricators 1 | . . . . . . . . . . . . . . . . . . . . 1 . . . . . . . . . . . . . . . . . . . Repair Stations 6 | . . . 2 . . . . 1 . . . 2 . 1 . . . . . . . . . . . . . . . . . . . . . . . . . Recycling Units 8 | . 1 . 2 2 . . . 1 . . . . . . . . . . . . . . . 2 . . . . . . . . . . . . . . . Scanalyzers 5 | . . . . . . . . . . . . . . . . . . . . . . . . . . . . . . . . . 1 . . 2 2 . . Garrison Access 18 | . . . . 1 . 1 . 1 . 1 . . . 1 . 1 . . . 1 . 1 . 1 . 1 . . . 1 . 2 1 . 2 1 . 1 . Total Hacks 424 | . 18 4 49 32 7 5 4 43 4 9 3 13 . 4 4 4 3 7 . 7 3 2 3 8 5 13 14 . . 16 2 16 14 . 8 46 39 11 4 Successful 191 | . 10 1 29 19 1 4 1 21 1 2 1 4 . 2 1 3 . 3 . 5 1 1 1 4 1 3 3 . . 8 1 8 3 . 4 17 18 8 2 Failed 233 | . 8 3 20 13 6 1 3 22 3 7 2 9 . 2 3 1 3 4 . 2 2 1 2 4 4 10 11 . . 8 1 8 11 . 4 29 21 3 2 Catastrophic 64 | . 1 1 . 2 1 . . 6 1 3 1 1 . 1 2 1 1 2 . 1 1 1 . 1 1 5 3 . . 1 . 1 4 . 2 8 8 1 2 Database Lockouts . | . . . . . . . . . . . . . . . . . . . . . . . . . . . . . . . . . . . . . . . . Manual 184 | . 15 3 28 15 1 4 . 28 1 3 . 3 . 1 . 1 . . . 3 1 1 1 1 . 10 . 1 . 10 . 9 5 . . 26 10 1 2 Terminals 336 | . 16 3 37 27 7 4 4 37 4 8 3 6 . . 4 1 3 7 . . 3 1 3 2 5 12 14 . . 15 2 12 7 . 4 38 34 9 4 Fabricators 5 | . . . . . . . . . . . . . . . . . . . . 5 . . . . . . . . . . . . . . . . . . . Repair Stations 20 | . . . 10 . . . . 2 . . . 7 . 1 . . . . . . . . . . . . . . . . . . . . . . . . . Recycling Units 11 | . 2 . 2 2 . . . 2 . . . . . . . . . . . . . . . 3 . . . . . . . . . . . . . . . Scanalyzers 14 | . . . . . . . . . . . . . . . . . . . . . . . . . . . . . . . . . 3 . . 6 5 . . Garrison Access 37 | . . . . 3 . 1 . 2 . 1 . . . 3 . 3 . . . 2 . 1 . 3 . 1 . . . 1 . 4 4 . 4 2 . 2 . Terminal Hacks 87 | . 3 1 12 9 1 1 1 8 1 1 1 1 . . 1 . . 3 . . 1 . 1 1 1 2 3 . . 2 1 4 1 . . 7 11 6 2 Part Schematic 4 | . 1 . 2 . . . . . . . . . . . . . . 1 . . . . . . . . . . . . . . . . . . . . . Robot Schematic 1 | . . . 1 . . . . . . . . . . . . . . . . . . . . . . . . . . . . . . . . . . . . Robot Analysis 4 | . . . 3 1 . . . . . . . . . . . . . . . . . . . . . . . . . . . . . . . . . . . Prototype ID Bank 13 | . 1 . 3 4 . . . 2 . . . . . . . . . . . . . . . . . . . . . . . 1 . . . 2 . . . Open Door 15 | . . 1 . 2 . . . . . . . . . . . . . . . . . . . . 1 1 2 . . . 1 . . . . . 3 3 1 Branch Access Points 5 | . . . . . . . . . . 1 . 1 . . . . . 1 . . . . . . . 1 . . . . . 1 . . . . . . . Emergency Access Points 3 | . . . . . . . . . 1 . . . . . . . . . . . . . 1 . . . . . . . . 1 . . . . . . . Machine Index 1 | . . . . . . . . . . . . . . . . . . . . . . . . . . . . . . . . . . . . . . 1 . Terminal Index 5 | . . . . 1 . . . 1 . . . . . . . . . . . . . . . . . . . . . 1 . 1 . . . . 1 . . Unreport Threat 7 | . . . 1 . . 1 . 2 . . . . . . . . . . . . . . . . . . . . . . . . . . . 1 . 2 . Locate Traps 12 | . 1 . 1 . . . . 2 . . . . . . . . . 1 . . . . . . . . 1 . . . . . 1 . . . 4 . 1 Maintenance Status 1 | . . . . . . . . . . . . . . . . . . . . . . . . . . . . . . . . . . . . 1 . . . Transport Status 1 | . . . . . . . . . . . . . . . . . . . . . . . . . . . . . . . . . . . . . 1 . . Hauler Manifests 1 | . . . . . . . . . . . . . . . . . . . . . . . . . . . . . . . . . . . . . 1 . . Registered Components 1 | . . . 1 . . . . . . . . . . . . . . . . . . . . . . . . . . . . . . . . . . . . Zone Layout 8 | . . . . 1 . . . 1 . . . . . . . . . . . . . . . 1 . . . . . 1 . . . . . 3 1 . . Garrison Registry 1 | . . . . . . . . . . . . . . . 1 . . . . . . . . . . . . . . . . . . . . . . . . Patrol Navigation 3 | . . . . . 1 . 1 . . . 1 . . . . . . . . . . . . . . . . . . . . . . . . . . . . Security Stations 1 | . . . . . . . . . . . . . . . . . . . . . 1 . . . . . . . . . . . . . . . . . . Fabricator Hacks 3 | . . . . . . . . . . . . . . . . . . . . 3 . . . . . . . . . . . . . . . . . . . Network Status 1 | . . . . . . . . . . . . . . . . . . . . 1 . . . . . . . . . . . . . . . . . . . Load Schematic 1 | . . . . . . . . . . . . . . . . . . . . 1 . . . . . . . . . . . . . . . . . . . Build 1 | . . . . . . . . . . . . . . . . . . . . 1 . . . . . . . . . . . . . . . . . . . Repair Station Hacks 13 | . . . 8 . . . . 2 . . . 3 . . . . . . . . . . . . . . . . . . . . . . . . . . . Scan Component 8 | . . . 4 . . . . 1 . . . 3 . . . . . . . . . . . . . . . . . . . . . . . . . . . Repair 5 | . . . 4 . . . . 1 . . . . . . . . . . . . . . . . . . . . . . . . . . . . . . . Recycling Unit Hacks 1 | . . . . . . . . . . . . . . . . . . . . . . . . 1 . . . . . . . . . . . . . . . Retrieve Components 1 | . . . . . . . . . . . . . . . . . . . . . . . . 1 . . . . . . . . . . . . . . . Scanalyzer 3 | . . . . . . . . . . . . . . . . . . . . . . . . . . . . . . . . . 1 . . 1 1 . . Insert Component 3 | . . . . . . . . . . . . . . . . . . . . . . . . . . . . . . . . . 1 . . 1 1 . . Garrison Access Hacks 27 | . . . . 1 . 1 . 1 . 1 . . . 2 . 2 . . . 1 . 1 . 2 . 1 . . . 1 . 4 1 . 4 2 . 2 . Unlock Access 11 | . . . . 1 . 1 . 1 . 1 . . . 1 . 1 . . . 1 . 1 . 1 . . . . . 1 . . 1 . . . . . . Seal Access 7 | . . . . . . . . . . . . . . . . . . . . . . . . . . 1 . . . . . 2 . . 2 1 . 1 . Coupler Status 9 | . . . . . . . . . . . . . . 1 . 1 . . . . . . . 1 . . . . . . . 2 . . 2 1 . 1 . Unauthorized Hacks 57 | . 7 . 9 9 . 2 . 10 . . . . . . . 1 . . . 1 . . . . . . . . . 5 . . . . . 7 6 . . Terminals 48 | . 6 . 7 7 . 2 . 10 . . . . . . . . . . . . . . . . . . . . . 5 . . . . . 6 5 . . Track 7 | . . . . . . . . 2 . . . . . . . . . . . . . . . . . . . . . 1 . . . . . 2 2 . . Assimilate 1 | . . . . . . . . . . . . . . . . . . . . . . . . . . . . . . . . . . . . 1 . . . Botnet 14 | . 2 . 1 1 . 1 . 3 . . . . . . . . . . . . . . . . . . . . . 2 . . . . . 2 2 . . Disrupt 2 | . . . 1 . . . . 1 . . . . . . . . . . . . . . . . . . . . . . . . . . . . . . . Operators 6 | . . . . 1 . 1 . 1 . . . . . . . . . . . . . . . . . . . . . 1 . . . . . 1 1 . . Skim 18 | . 4 . 5 5 . . . 3 . . . . . . . . . . . . . . . . . . . . . 1 . . . . . . . . . Fabricators 1 | . . . . . . . . . . . . . . . . . . . . 1 . . . . . . . . . . . . . . . . . . . Prioritize 1 | . . . . . . . . . . . . . . . . . . . . 1 . . . . . . . . . . . . . . . . . . . Repair Stations . | . . . . . . . . . . . . . . . . . . . . . . . . . . . . . . . . . . . . . . . . Recycling Units 5 | . 1 . 2 2 . . . . . . . . . . . . . . . . . . . . . . . . . . . . . . . . . . . Tunnel 5 | . 1 . 2 2 . . . . . . . . . . . . . . . . . . . . . . . . . . . . . . . . . . . Scanalyzers 2 | . . . . . . . . . . . . . . . . . . . . . . . . . . . . . . . . . . . . 1 1 . . Researchers 2 | . . . . . . . . . . . . . . . . . . . . . . . . . . . . . . . . . . . . 1 1 . . Garrison Access 1 | . . . . . . . . . . . . . . . . 1 . . . . . . . . . . . . . . . . . . . . . . . Reprogram 1 | . . . . . . . . . . . . . . . . 1 . . . . . . . . . . . . . . . . . . . . . . . Data Cores Recovered 5 | . . . . . . 1 . 2 . . . . . . . . . 1 . . . . . . . . . . . . . . . . . . 1 . . Used 1 | . . . . . . . . 1 . . . . . . . . . . . . . . . . . . . . . . . . . . . . . . . Hacking Detections 117 | . 3 1 12 9 2 3 1 13 2 4 2 5 . 2 2 2 1 3 . 2 2 1 1 3 2 4 3 1 . 5 . 2 5 . 3 6 7 2 1 Full Trace Events 4 | . 1 . . . . . . 1 . . . . . . . . . . . . . . . . . 1 1 . . . . . . . . . . . . Feedback Events . | . . . . . . . . . . . . . . . . . . . . . . . . . . . . . . . . . . . . . . . . Feedback Blocked . | . . . . . . . . . . . . . . . . . . . . . . . . . . . . . . . . . . . . . . . . Robot Schematics Acquired 7 | . . . 1 . . . . . . . . . . . . . . . . . . . . . . . . . . . . . 1 . . 2 3 . . Robots Built 1 | . . . . . . . . . . . . . . . . . . . . 1 . . . . . . . . . . . . . . . . . . . Authchips 1 | . . . . . . . . . . . . . . . . . . . . 1 . . . . . . . . . . . . . . . . . . . Time 40 | . . . . . . . . . . . . . . . . . . . . 40 . . . . . . . . . . . . . . . . . . . Total Robot Build Rating 1 | . . . . . . . . . . . . . . . . . . . . 1 . . . . . . . . . . . . . . . . . . . Part Schematics Acquired 14 | . 1 . 2 . . . . . . . . . . . . . . 1 . . . . . . . . . . . . . . 1 . . 3 6 . . Parts Built . | . . . . . . . . . . . . . . . . . . . . . . . . . . . . . . . . . . . . . . . . Authchips . | . . . . . . . . . . . . . . . . . . . . . . . . . . . . . . . . . . . . . . . . Time . | . . . . . . . . . . . . . . . . . . . . . . . . . . . . . . . . . . . . . . . . Total Part Build Rating . | . . . . . . . . . . . . . . . . . . . . . . . . . . . . . . . . . . . . . . . . Parts Repaired 5 | . . . 4 . . . . 1 . . . . . . . . . . . . . . . . . . . . . . . . . . . . . . . Time 142 | . . . 104 . . . . 38 . . . . . . . . . . . . . . . . . . . . . . . . . . . . . . . Parts Recycled . | . . . . . . . . . . . . . . . . . . . . . . . . . . . . . . . . . . . . . . . . Recycled Matter . | . . . . . . . . . . . . . . . . . . . . . . . . . . . . . . . . . . . . . . . . Retrieved Matter . | . . . . . . . . . . . . . . . . . . . . . . . . . . . . . . . . . . . . . . . . Retrieved Components 2 | . . . . . . . . . . . . . . . . . . . . . . . . 2 . . . . . . . . . . . . . . . Parts Scanalyzed . | . . . . . . . . . . . . . . . . . . . . . . . . . . . . . . . . . . . . . . . . Part Schematics Acquired . | . . . . . . . . . . . . . . . . . . . . . . . . . . . . . . . . . . . . . . . . Parts Damaged . | . . . . . . . . . . . . . . . . . . . . . . . . . . . . . . . . . . . . . . . . Bothacking | -11 -10 -10 -9 -9 -9 -8 -8 -8 -8 -7 -7 -6 -6 -6 -6 -6 -6 -5 -5 -5 -5 -5 -5 -4 -4 -4 -4 -4 -4 -4 -4 -3 -3 -3 -2 -2 -2 -1 -1 ------------ Run | Yrd Mat Min Mat Sto Gar Mat Gar Mat Gar Fac Gar Fac Was Fac Gar Fac Gar Fac Was Fac Gar Fac Gar Fac Gar Fac Ext Cet Arc Hub Gar Res Tes Gar Res Qua Sec Acc Com Used RIF Installer 13 | . . . . . 1 . 1 . 1 . 1 . . . 1 . 1 . . . 2 . 1 . 1 . . . . . 2 . . 1 . . . . . Coupler Efficiency 2 | . . . . . . . . . . . . . . . 1 . . . . . 1 . . . . . . . . . . . . . . . . . . Hotswap 1 | . . . . . . . 1 . . . . . . . . . . . . . . . . . . . . . . . . . . . . . . . . Code Merge 1 | . . . . . . . . . . . . . . . . . . . . . . . . . . . . . . . 1 . . . . . . . . Threat Obfuscator 3 | . . . . . . . . . 1 . 1 . . . . . . . . . 1 . . . . . . . . . . . . . . . . . . Zone Cloak 1 | . . . . . . . . . . . . . . . . . 1 . . . . . . . . . . . . . . . . . . . . . . Robot Detection 1 | . . . . . . . . . . . . . . . . . . . . . . . . . . . . . . . . . . 1 . . . . . Structural Interface 1 | . . . . . . . . . . . . . . . . . . . . . . . . . 1 . . . . . . . . . . . . . . Program Shield 1 | . . . . . . . . . . . . . . . . . . . . . . . 1 . . . . . . . . . . . . . . . . Crosswire 1 | . . . . . . . . . . . . . . . . . . . . . . . . . . . . . . . 1 . . . . . . . . Robots Hacked 113 | . . . . . . . . . . 1 . 2 6 . 8 2 6 6 6 . 2 . . . 5 . 3 . . . 1 5 12 14 9 11 10 4 . Non-combat 25 | . . . . . . . . . . 1 . 2 . . 2 . . 4 . . . . . . . . 1 . . . . 2 2 1 3 3 2 2 . Combat 88 | . . . . . . . . . . . . . 6 . 6 2 6 2 6 . 2 . . . 5 . 2 . . . 1 3 10 13 6 8 8 2 . Robot Hacks Applied 118 | . . . . . . . . . . 1 . 2 7 . 8 2 6 6 6 . 2 . . . 5 . 3 . . . 1 5 12 14 9 13 12 4 . parse_system 10 | . . . . . . . . . . . . 1 1 . . . 1 1 . . . . . . . . . . . . . . . 2 . 3 1 . . find_chute 4 | . . . . . . . . . . 1 . 1 . . . . . 2 . . . . . . . . . . . . . . . . . . . . . map_walls 1 | . . . . . . . . . . . . . . . . . . . . . . . . . . . . . . . . . . . . . . 1 . drop_inventory 6 | . . . . . . . . . . . . . . . . . . 1 . . . . . . . . . . . . . 2 . . 1 1 1 . . purge_threat 3 | . . . . . . . . . . . . . . . . . . . . . . . . . . . . . . . . . . . . . 3 . . map_route 3 | . . . . . . . . . . . . . . . . . . . . . . . . . . . . . . . . . . . 2 . . 1 . disable_scanner 4 | . . . . . . . . . . . . . . . . . . . . . . . . . . . . . . . . . 1 . . 1 2 . . ignore_targets 12 | . . . . . . . . . . . . . 6 . . . . . 6 . . . . . . . . . . . . . . . . . . . . overload_power 1 | . . . . . . . . . . . . . . . . . . . . . . . . . . . . . . . . . . . . 1 . . . amplify_resonance 22 | . . . . . . . . . . . . . . . 3 1 3 . . . . . . . . . . . . . 1 1 2 4 3 1 2 1 . reboot_system 1 | . . . . . . . . . . . . . . . . 1 . . . . . . . . . . . . . . . . . . . . . . . overwrite_iff 20 | . . . . . . . . . . . . . . . 2 . . . . . . . . . 1 . . . . . . 2 5 6 3 . . 1 . formatsys_low 11 | . . . . . . . . . . . . . . . 2 . . . . . . . . . . . 1 . . . . . 2 1 . 3 2 . . formatsys_high 20 | . . . . . . . . . . . . . . . 1 . 2 2 . . 2 . . . 4 . 2 . . . . . 2 1 . 3 1 . . Relay Couplers Released 129 | . . . . . 16 . 9 . . . 3 . . . 10 . 16 . . . 6 . 10 . 8 2 . . . . 12 1 . 28 1 2 4 1 . Machine Destruction 114 | . . . . . 16 . 5 . . . 3 . . . 7 . 12 . . . 6 . 10 . 8 2 . . . . 12 1 . 28 1 2 . 1 . Programmers 15 | . . . . . . . 4 . . . . . . . 3 . 4 . . . . . . . . . . . . . . . . . . . 4 . . Attached 29 | . . . . . . . . . . . . . 1 . 3 1 2 2 . . 1 . . . 3 . 2 . . . 2 . . 5 . 2 1 2 2 Crosswired 20 | . . . . . . . . . . . . . . . . . . . . . . . . . . . . . . . 9 . . 9 . . 1 1 . Merged Code Value 188 | . . . . . . . . . . . . . . . . . . . . . . . . . . . . . . . 43 . . 116 9 9 11 . . Fabnet Peak Effective % . | . . . . . . . . . . . . . . . . . . . . . . . . . . . . . . . . . . . . . . . . Robots Rewired 36 | . . . . . . . . . . . . . . . . . 1 . . . 1 . . . 9 . 13 . . . 2 . . 10 . . . . . Allies Hacked 3 | . . . . . . . . . . . . . . . . . . . . . . . . . . . . . . . . . 1 . . 1 . 1 . Hacks Repelled . | . . . . . . . . . . . . . . . . . . . . . . . . . . . . . . . . . . . . . . . . Allies | -11 -10 -10 -9 -9 -9 -8 -8 -8 -8 -7 -7 -6 -6 -6 -6 -6 -6 -5 -5 -5 -5 -5 -5 -4 -4 -4 -4 -4 -4 -4 -4 -3 -3 -3 -2 -2 -2 -1 -1 -------- Run | Yrd Mat Min Mat Sto Gar Mat Gar Mat Gar Fac Gar Fac Was Fac Gar Fac Gar Fac Was Fac Gar Fac Gar Fac Gar Fac Ext Cet Arc Hub Gar Res Tes Gar Res Qua Sec Acc Com Total Allies 102 | . . . . . . . . . . . . . 1 . 5 1 3 2 1 1 3 . 2 . 15 . 19 5 . . 2 2 9 18 3 6 3 1 . Largest Group 10 | . . . . . . . . . . . . . 1 . 2 1 1 2 1 1 3 3 3 2 7 3 9 10 9 9 2 1 2 6 4 4 4 2 . Highest-Rated Group 794 | . . . . . . . . . . . . . 31 . 52 32 85 58 31 14 246 246 246 190 358 136 490 794 635 635 98 47 94 363 202 505 505 359 . Highest-Rated Ally 344 | . . . . . . . . . . . . . 31 . 32 32 85 29 31 14 148 148 148 95 95 49 159 159 96 96 50 47 47 148 68 344 344 317 . Total Orders 202 | . . . . . . . 1 . . . . 12 . . 10 3 . 7 . 1 9 . . 1 2 . 2 . 2 2 . 37 9 8 43 27 15 11 . STAY 35 | . . . . . . . . . . . . . . . 5 1 . . . . 4 . . . . . . . . 2 . 2 1 3 2 7 8 . . ROAM 1 | . . . . . . . . . . . . . . . . . . . . . . . . . 1 . . . . . . . . . . . . . . FOLLOW 30 | . . . . . . . . . . . . 3 . . 1 1 . 1 . . 3 . . . . . . . . . . . 1 2 5 6 7 . . AID 16 | . . . . . . . . . . . . . . . 4 1 . . . . 2 . . . . . 1 . . . . . 2 3 1 2 . . . EXPLORE 36 | . . . . . . . . . . . . 2 . . . . . 2 . . . . . . . . . . . . . 15 . . 7 4 . 6 . RETURN 84 | . . . . . . . 1 . . . . 7 . . . . . 4 . 1 . . . 1 1 . 1 . 2 . . 20 5 . 28 8 . 5 . Ally Attacks 730 | . . . . . . . . . . . . . 21 . 6 . 18 22 66 . 29 11 23 8 40 25 81 41 . 51 2 3 22 89 19 30 98 25 . Total Damage 21993 | . . . . . . . . . . . . . 313 . 203 . 883 391 1052 . 865 120 860 1231 1252 792 1995 1064 . 1720 83 118 443 2712 578 1086 3307 925 . Kills 116 | . . . . . . . . . . . . . 1 . 1 . 7 4 . . 7 1 5 5 6 8 12 6 . 4 . 1 . 10 3 6 24 5 . Allies Corrupted 3 | . . . . . . . . . . . . . . . . . 1 . 1 . . . . . . . . . . . . . 1 . . . . . . Allies Melted 9 | . . . . . . . . . . . . . . . . . 1 . . . . . . . . . . 1 . . . . . . . . . . 7 Intel | -11 -10 -10 -9 -9 -9 -8 -8 -8 -8 -7 -7 -6 -6 -6 -6 -6 -6 -5 -5 -5 -5 -5 -5 -4 -4 -4 -4 -4 -4 -4 -4 -3 -3 -3 -2 -2 -2 -1 -1 ------- Run | Yrd Mat Min Mat Sto Gar Mat Gar Mat Gar Fac Gar Fac Was Fac Gar Fac Gar Fac Was Fac Gar Fac Gar Fac Gar Fac Ext Cet Arc Hub Gar Res Tes Gar Res Qua Sec Acc Com Active Infowar (turns) 15351 | 6 2183 453 998 . . 305 . 35 . . . . . . . . . . . . . 115 714 482 549 . . . . 1 . . 26 1420 1818 1360 2735 1717 434 Optics 4 | . . . . . . . . . . . . . . . . . . . . . . . . . . . . . . . . . 2 . . . 2 . . Sensors 1 | . . . . . . . . . . . . . . . . . . . . . . . . . . . . . . 1 . . . . . . . . . Seismic 3980 | 6 2183 453 998 . . 305 . 35 . . . . . . . . . . . . . . . . . . . . . . . . . . . . . . . Machine Analysis 2 | . . . . . . . . . . . . . . . . . . . . . . . . . . . . . . . . . . . 2 . . . . Jamming 11368 | . . . . . . . . . . . . . . . . . . . . . . 115 714 482 549 . . . . . . . 24 1420 1818 1360 2735 1717 434 Robot Analysis Total 4 | . . . 3 1 . . . . . . . . . . . . . . . . . . . . . . . . . . . . . . . . . . . Derelict Logs Recovered 2 | . . 2 . . . . . . . . . . . . . . . . . . . . . . . . . . . . . . . . . . . . . Drone Launches 86 | . . . . . . . 1 . . . . 8 . . . . . 4 . 1 . . . 1 3 . 1 . 1 . . 21 5 . 22 9 . 9 . Drone Recoveries 84 | . . . . . . . 1 . . . . 8 . . . . . 4 . 1 . . . 1 3 . 1 . 1 . . 20 5 . 22 9 . 8 . Exploration | -11 -10 -10 -9 -9 -9 -8 -8 -8 -8 -7 -7 -6 -6 -6 -6 -6 -6 -5 -5 -5 -5 -5 -5 -4 -4 -4 -4 -4 -4 -4 -4 -3 -3 -3 -2 -2 -2 -1 -1 ------------- Run | Yrd Mat Min Mat Sto Gar Mat Gar Mat Gar Fac Gar Fac Was Fac Gar Fac Gar Fac Was Fac Gar Fac Gar Fac Gar Fac Ext Cet Arc Hub Gar Res Tes Gar Res Qua Sec Acc Com Turns Passed 55957 | 83 2187 903 3541 2311 1531 1952 1265 2918 1577 1473 1542 1324 403 301 1854 405 1624 960 496 199 1175 362 1094 482 1728 1194 1605 351 119 1019 1520 1625 1238 1554 1818 1492 3052 3522 2158 Spaces Moved 22236 | 11 912 484 1284 776 548 112 450 1033 551 524 542 456 119 125 821 159 771 440 190 100 532 206 557 182 572 440 729 167 49 451 729 791 596 679 762 760 1382 1239 1005 Core . | . . . . . . . . . . . . . . . . . . . . . . . . . . . . . . . . . . . . . . . . Treads 21691 | . 734 484 1284 776 548 112 450 1033 551 524 542 456 119 125 821 159 771 440 190 100 532 206 557 182 572 440 729 167 49 451 729 791 596 679 762 760 1243 1226 801 Legs 189 | 11 178 . . . . . . . . . . . . . . . . . . . . . . . . . . . . . . . . . . . . . . Wheels . | . . . . . . . . . . . . . . . . . . . . . . . . . . . . . . . . . . . . . . . . Hover . | . . . . . . . . . . . . . . . . . . . . . . . . . . . . . . . . . . . . . . . . Flight . | . . . . . . . . . . . . . . . . . . . . . . . . . . . . . . . . . . . . . . . . Fastest Speed 120 | 120 120 160 160 240 240 240 240 240 250 245 242 240 160 160 160 160 160 160 160 160 160 160 160 166 166 241 158 158 158 158 158 158 158 158 163 158 146 152 152 Average Speed 191 | 120 152 160 218 240 240 240 240 244 250 246 242 240 224 160 160 160 163 160 173 160 160 160 161 184 216 245 164 158 158 177 158 159 158 165 168 161 157 215 205 Slowest Speed 410 | 120 160 160 240 240 240 240 240 250 250 247 245 242 240 160 240 160 240 160 240 160 160 160 166 246 250 246 241 158 158 238 245 166 158 166 260 237 158 410 238 Overloaded Moves . | . . . . . . . . . . . . . . . . . . . . . . . . . . . . . . . . . . . . . . . . Propulsion Burnouts . | . . . . . . . . . . . . . . . . . . . . . . . . . . . . . . . . . . . . . . . . Robots Hopped . | . . . . . . . . . . . . . . . . . . . . . . . . . . . . . . . . . . . . . . . . Potential Cave-ins 5 | . . . . . . . . . . . . 2 . . . . . . . . . . . . . 2 . . . . . . . . . . . 1 . Cave-ins Triggered 1 | . . . . . . . . . . . . . . . . . . . . . . . . . . . . . . . . . . . . . . 1 . Microwarps 33 | . . . . . . . . . . . . . . . . . . . . . . . . . . . . . . . . . . . . . 11 1 21 Exploration Rate (%) 52 | 3 98 98 92 94 71 16 63 77 76 17 66 15 77 4 78 7 77 15 85 4 55 9 78 6 85 10 87 56 54 37 76 40 84 66 33 78 73 22 20 Regions Visited 39 Branch Regions 10 Pre-discovered Areas 10 | . 1 1 4 4 . . . . . . . . . . . . . . . . . . . . . . . . . . . . . . . . . . . Known Exits Taken 17 | . . . 1 1 . 1 . 1 . 1 . . . 1 . 1 . . . 1 . 1 . 1 . 1 . . 1 1 . 1 1 . . 1 1 . . Unknown Exits Taken 7 | 1 1 1 . . . . . . . . . . . . . . . . . . . . . . . . 1 1 . . . . . . 1 . . 1 . Scrap Searched 1 | . . 1 . . . . . . . . . . . . . . . . . . . . . . . . . . . . . . . . . . . . . Spaces Dug 99 | . 7 . 18 . . 9 . . . 2 . 11 . . . . . 4 . 2 1 . . . . 2 . . 1 1 . 21 . . 5 6 6 1 2 Terrain Destroyed 799 | . 15 3 23 . . 24 27 1 14 4 47 27 . . 19 8 69 29 4 3 6 2 8 . 11 22 53 4 2 30 26 66 8 23 39 68 92 18 4 Melee . | . . . . . . . . . . . . . . . . . . . . . . . . . . . . . . . . . . . . . . . . Projectile 492 | . 15 3 1 . . . . 1 3 4 . 27 . . 18 8 8 13 4 3 5 2 7 . 8 21 25 4 2 30 20 66 8 22 37 42 65 16 4 AOE 286 | . . . 22 . . 24 27 . 11 . 47 . . . . . 61 16 . . . . . . . . 26 . . . . . . . . 26 25 1 . Terrain Rammed . | . . . . . . . . . . . . . . . . . . . . . . . . . . . . . . . . . . . . . . . . Walls Destroyed . | . . . . . . . . . . . . . . . . . . . . . . . . . . . . . . . . . . . . . . . . Machines Disabled . | . . . . . . . . . . . . . . . . . . . . . . . . . . . . . . . . . . . . . . . . Actions | -11 -10 -10 -9 -9 -9 -8 -8 -8 -8 -7 -7 -6 -6 -6 -6 -6 -6 -5 -5 -5 -5 -5 -5 -4 -4 -4 -4 -4 -4 -4 -4 -3 -3 -3 -2 -2 -2 -1 -1 --------- Run | Yrd Mat Min Mat Sto Gar Mat Gar Mat Gar Fac Gar Fac Was Fac Gar Fac Gar Fac Was Fac Gar Fac Gar Fac Gar Fac Ext Cet Arc Hub Gar Res Tes Gar Res Qua Sec Acc Com Total 32572 | 61 1552 553 1802 1088 658 1757 550 1272 654 623 678 586 205 198 1150 276 1028 632 268 136 768 228 701 322 968 513 1035 225 79 579 970 1050 823 971 1159 959 1963 2083 1449 Wait 5554 | 39 494 24 283 206 25 1609 8 113 9 2 30 15 . 49 110 81 94 69 2 11 135 7 75 127 205 11 107 2 13 44 102 86 93 81 178 56 259 518 182 Move 21883 | 10 911 483 1283 776 547 112 449 1033 550 524 541 456 118 125 820 158 770 440 189 100 531 205 556 182 571 439 728 166 48 450 728 790 596 678 761 759 1253 1225 822 Hop . | . . . . . . . . . . . . . . . . . . . . . . . . . . . . . . . . . . . . . . . . Pick Up 330 | 1 24 1 34 4 3 5 1 10 4 6 6 9 7 2 19 2 19 14 4 2 6 1 6 4 5 2 2 6 . 4 7 13 6 10 10 8 26 16 21 Fast Attach 246 | 1 1 3 7 5 . . . 2 1 5 1 2 3 1 13 1 1 8 7 1 8 3 3 . 10 6 2 5 . 7 9 9 15 4 13 3 37 27 22 Attach 149 | . 4 . 7 . 3 2 . 2 2 5 4 4 5 . 7 . 12 5 . 6 2 . 1 2 1 . 1 3 . 3 3 4 1 3 6 3 21 14 13 Detach 100 | . . . . . 1 . . . 1 2 . . 4 . 5 . 4 2 4 1 2 . . . 1 . . . . 4 2 . 2 3 5 2 19 18 18 Swap 740 | 1 13 10 36 8 9 5 16 14 8 10 9 19 6 3 27 10 28 25 3 6 11 1 1 2 18 10 14 9 4 12 10 34 42 33 70 48 98 45 12 Drop 536 | . 20 5 30 16 5 4 6 23 3 11 9 10 18 2 19 3 14 18 12 5 13 4 10 2 10 12 4 12 . 9 14 21 17 8 26 12 49 35 45 Fire 2536 | 9 73 24 96 66 59 19 60 71 65 55 62 67 43 16 128 20 78 48 47 4 60 7 49 3 65 30 57 22 14 38 86 91 49 97 82 59 187 174 256 Melee 2 | . . . . . . . . . . . . . . . . . . . . . . . . . . . . . . . . . . . . . 2 . . Ram . | . . . . . . . . . . . . . . . . . . . . . . . . . . . . . . . . . . . . . . . . Kick 7 | . 7 . . . . . . . . . . . . . . . . . . . . . . . . . . . . . . . . . . . . . . Crush 138 | . 5 3 8 7 . 1 . 4 . 3 . 4 1 . . 1 . 3 . . . . . . . 3 1 . . 2 1 1 2 . 8 6 12 10 52 Escape Stasis 50 | . . . . . 4 . 10 . 11 . 16 . . . . . 6 . . . . . . . 2 . . . . . . . . . . . . 1 . Rewire 267 | . . . . . . . . . . . . . . . 2 . 2 . . . . . . . 80 . 111 . . . 8 1 . 54 . 3 . . 6 Trap 20 | . . . 18 . 2 . . . . . . . . . . . . . . . . . . . . . . . . . . . . . . . . . . Miscellaneous 14 | . . . . . . . . . . . . . . . . . . . . . . . . . . . 8 . . 6 . . . . . . . . . Route ------- -11/Scrapyard -10/Materials (discovered 4 exits: *Mat x3 / *Min) -10/Mines (discovered 3 exits: *Mat x2 / Sub) -9/Materials (discovered 5 exits: *Mat x3 / *Min / *Sto) -9/Storage (discovered 3 exits: *Mat / Rec / Gar) -9/Garrison (discovered 3 exits: *Mat x3) -8/Materials (discovered 4 exits: Fac x3 / Gar) -8/Garrison (discovered 3 exits: *Mat x3) -8/Materials (discovered 3 exits: *Fac x2 / Gar) -8/Garrison (discovered 3 exits: *Fac x3) -7/Factory (discovered 3 exits: Low x2 / Gar) -7/Garrison (discovered 3 exits: *Fac x3) -6/Factory (discovered 2 exits: Low x2) -6/Waste -6/Factory -6/Garrison (discovered 3 exits: *Fac x3) -6/Factory -6/Garrison (discovered 3 exits: *Fac x3) -5/Factory (discovered 2 exits: Upp x2) -5/Waste -5/Factory (discovered 2 exits: *Fac / Gar) -5/Garrison -5/Factory -5/Garrison (discovered 3 exits: *Fac x3) -4/Factory (discovered 2 exits: *Upp / Gar) -4/Garrison (discovered 3 exits: *Fac x3) -4/Factory (discovered 4 exits: *Upp x2 / *Ext x2) -4/Extension (discovered 2 exits: *Res / *Cet) -4/Cetus (discovered 2 exits: *Res / [*Arc]) -4/Archives -4/Hub_04(d) (discovered 3 exits: *Res x2 / Gar) -4/Garrison (discovered 3 exits: *Res x3) -3/Research (discovered 4 exits: *Res / Arm / *Tes x2) -3/Testing (discovered 2 exits: *Res / Gar) -3/Garrison (discovered 2 exits: *Res x2) -2/Research (discovered 2 exits: *Acc / *Qua) -2/Quarantine (discovered 3 exits: *Acc / *Sec / *Frg) -2/Section 7 -1/Access -1/Command (discovered 2 exits: Sur x2) By MAIN.C's Side History --------- Turn | Location | Event 11 | -11/Scrapyard | Discovered new exit (range 3) 84 | -11/Scrapyard | Entered Materials 300 | -10/Materials | Build established: Mutant 1041 | -10/Materials | Discovered new exit (range 6) 1120 | -10/Materials | Discovered new exit (range 15) 1548 | -10/Materials | Discovered new exit (range 6) 1679 | -10/Materials | Discovered new exit (range 12) 2271 | -10/Materials | Entered Mines 2274 | -10/Mines | Found the Drone Emporium 2282 | -10/Mines | Found Prototype Device 2282 | -10/Mines | Identified Sensor Drone Bay 2698 | -10/Mines | Learned location of Storage (-9) 2722 | -10/Mines | Identified exit to Subcaves 2735 | -10/Mines | Excavation squad dispatched 2735 | -10/Mines | A large section of the Mines collapsed 2933 | -10/Mines | Discovered new exit (range 4) 3055 | -10/Mines | Discovered new exit (range 7) 3174 | -10/Mines | Entered Materials 3174 | -9/Materials | Evolved 2 slots: Propulsion x1, Weapon x1 3393 | -9/Materials | Lost 4 parts (1n1u2w) 3906 | -9/Materials | Build established: Scavenger-Gunner 4015 | -9/Materials | Discovered new exit (range 15) 4774 | -9/Materials | Repaired Lgt. Treads 4802 | -9/Materials | Repaired Lgt. Treads 4829 | -9/Materials | Repaired Assault Rifle 4856 | -9/Materials | Repaired Lgt. Treads 4989 | -9/Materials | Discovered new exit (range 8) 5128 | -9/Materials | Build established: Gunner 5278 | -9/Materials | Discovered new exit (range 16) 5334 | -9/Materials | Learned Storage emergency access door positions 5395 | -9/Materials | Identified exit to Materials 5448 | -9/Materials | Identified exit to Storage 5448 | -9/Materials | Identified exit to Mines 5526 | -9/Materials | Learned location of 3 exits from Materials 5569 | -9/Materials | Learned 4 Recycling zone layouts 5621 | -9/Materials | Learned 4 Recycling zone layouts 5684 | -9/Materials | Learned Storage trap positions 5983 | -9/Materials | Build established: Scavenger-Gunner 6715 | -9/Materials | Entered Storage 6716 | -9/Storage | Loaded intel: 18 trap records 7119 | -9/Storage | Core integrity fell below 50% 7643 | -9/Storage | Discovered exit to Materials (range 7) 8676 | -9/Storage | Learned Materials repair station intel 8688 | -9/Storage | Learned location of Armory (-3) 8768 | -9/Storage | Identified exit to Recycling 8826 | -9/Storage | Learned Materials security intel 8901 | -9/Storage | Learned Materials emergency access door positions 8946 | -9/Storage | Learned 2 Materials zone layouts 9026 | -9/Storage | Identified exit to Garrison 9026 | -9/Storage | Entered Garrison 9100 | -9/Garrison | Triggered checkpoint 9128 | -9/Garrison | Garrison Relay disabled 9216 | -9/Garrison | Triggered checkpoint 9233 | -9/Garrison | Triggered checkpoint 9364 | -9/Garrison | Discovered exit to Materials (range 10) 9420 | -9/Garrison | Triggered checkpoint 9448 | -9/Garrison | Garrison Relay disabled 9656 | -9/Garrison | Triggered checkpoint 9704 | -9/Garrison | Garrison Relay disabled 9783 | -9/Garrison | Discovered exit to Materials (range 10) 9948 | -9/Garrison | Triggered checkpoint 10051 | -9/Garrison | Discovered exit to Materials (range 13) 10082 | -9/Garrison | Triggered checkpoint 10156 | -9/Garrison | Garrison Relay disabled 10203 | -9/Garrison | Core integrity fell below 20% 10236 | -9/Garrison | Installed Relay Interface Framework 10557 | -9/Garrison | Entered Materials 10557 | -8/Materials | Evolved 2 slots: Utility x2 10558 | -8/Materials | Identified exit to Factory 10562 | -8/Materials | Loaded intel: 2 repair station locations 10986 | -8/Materials | Identified exit to Garrison 12509 | -8/Materials | Entered Garrison 12513 | -8/Garrison | Triggered checkpoint 12595 | -8/Garrison | Triggered checkpoint 12625 | -8/Garrison | Triggered checkpoint 12658 | -8/Garrison | Garrison Relay disabled 12816 | -8/Garrison | Discovered new exit (range 12) 12923 | -8/Garrison | Triggered checkpoint 12998 | -8/Garrison | Discovered new exit (range 8) 13045 | -8/Garrison | Triggered checkpoint 13431 | -8/Garrison | Expanded RIF knowledge: Hotswap 13525 | -8/Garrison | Triggered checkpoint 13637 | -8/Garrison | Discovered new exit (range 8) 13770 | -8/Garrison | Identified exit to Materials 13774 | -8/Garrison | Entered Materials 15054 | -8/Materials | Repaired Imp. Light Armor Plating 15494 | -8/Materials | Discovered exit to Factory (range 5) 15672 | -8/Materials | Build established: Gunner 16557 | -8/Materials | Discovered exit to Factory (range 12) 16692 | -8/Materials | Identified exit to Garrison 16692 | -8/Materials | Entered Garrison 16772 | -8/Garrison | Expanded RIF knowledge: Threat Obfuscation 16995 | -8/Garrison | Triggered checkpoint 17047 | -8/Garrison | Triggered checkpoint 17141 | -8/Garrison | Discovered exit to Factory (range 10) 17206 | -8/Garrison | Triggered checkpoint 17651 | -8/Garrison | Discovered exit to Factory (range 10) 17798 | -8/Garrison | Triggered checkpoint 17986 | -8/Garrison | Triggered checkpoint 18242 | -8/Garrison | Discovered exit to Factory (range 12) 18269 | -8/Garrison | Entered Factory 18269 | -7/Factory | Evolved 2 slots: Propulsion x1, Utility x1 18647 | -7/Factory | Found Prototype Launcher 18647 | -7/Factory | Identified Rocket Array 18955 | -7/Factory | Garrison activated, responded to threat 19363 | -7/Factory | Identified exit to Lower Caves 19742 | -7/Factory | Identified exit to Garrison 19742 | -7/Factory | Entered Garrison 19820 | -7/Garrison | Expanded RIF knowledge: Threat Obfuscation 19938 | -7/Garrison | Triggered checkpoint 19976 | -7/Garrison | Triggered checkpoint 19990 | -7/Garrison | Build established: Tank 20132 | -7/Garrison | Discovered new exit (range 12) 20194 | -7/Garrison | Triggered checkpoint 20225 | -7/Garrison | Garrison Relay disabled 20342 | -7/Garrison | Triggered checkpoint 20537 | -7/Garrison | Build established: Scavenger-Tank 20542 | -7/Garrison | Discovered new exit (range 11) 20662 | -7/Garrison | Triggered checkpoint 20984 | -7/Garrison | Triggered checkpoint 21230 | -7/Garrison | Discovered new exit (range 15) 21238 | -7/Garrison | Triggered checkpoint 21284 | -7/Garrison | Entered Factory 21284 | -6/Factory | Evolved 2 slots: Utility x1, Weapon x1 21836 | -6/Factory | Identified exit to Lower Caves 22608 | -6/Factory | Sucked down chute 22608 | -6/Factory | Entered Waste 22609 | -6/Waste | Met a frightened Derelict 22623 | -6/Waste | EMP discharged 22623 | -6/Waste | System corruption reached 10% 22636 | -6/Waste | Spotted C-40 Crusher 22662 | -6/Waste | Spotted C-40 Crusher 22670 | -6/Waste | Allies destroyed C-40 Crusher 22696 | -6/Waste | Spotted C-40 Crusher 22723 | -6/Waste | EMP discharged 22734 | -6/Waste | Spotted C-40 Crusher 22752 | -6/Waste | Spotted C-40 Crusher 22761 | -6/Waste | Spotted C-40 Crusher 22778 | -6/Waste | Destroyed C-40 Crusher 22804 | -6/Waste | Found Damper Plating 22823 | -6/Waste | EMP discharged 22828 | -6/Waste | Destroyed C-40 Crusher 22923 | -6/Waste | EMP discharged 22970 | -6/Waste | Discovered new exit (range 11) 23011 | -6/Waste | Entered Factory 23312 | -6/Factory | Identified exit to Garrison 23312 | -6/Factory | Entered Garrison 23454 | -6/Garrison | Triggered checkpoint 23499 | -6/Garrison | Garrison Relay disabled 23824 | -6/Garrison | Triggered checkpoint 23914 | -6/Garrison | Expanded RIF knowledge: Coupler Efficiency 24309 | -6/Garrison | Discovered new exit (range 11) 24330 | -6/Garrison | Triggered checkpoint 24632 | -6/Garrison | Triggered checkpoint 24666 | -6/Garrison | Discovered new exit (range 12) 24685 | -6/Garrison | Discovered new exit (range 23) 24685 | -6/Garrison | Discovered new exit (range 43) 24685 | -6/Garrison | Discovered new exit (range 49) 24790 | -6/Garrison | Triggered checkpoint 24840 | -6/Garrison | Spotted B-75 Beast 24927 | -6/Garrison | Lost 5 parts (1p1n3u) 24930 | -6/Garrison | Destroyed B-75 Beast 25009 | -6/Garrison | Found Relay Coupler [Proto] 25012 | -6/Garrison | Found Relay Coupler [Proto] 25015 | -6/Garrison | Found Relay Coupler [Proto] 25037 | -6/Garrison | Garrison Relay disabled 25166 | -6/Garrison | Entered Factory 25166 | -6/Factory | Accompanied by 1 ally 25313 | -6/Factory | Build established: Bothacker-Tank 25463 | -6/Factory | Garrison activated, responded to threat 25505 | -6/Factory | Identified exit to Garrison 25571 | -6/Factory | Entered Garrison 25571 | -6/Garrison | Accompanied by 1 ally 25608 | -6/Garrison | Spotted B-86 Titan 25652 | -6/Garrison | Destroyed B-86 Titan 25728 | -6/Garrison | Rewired B-75 Beast 25829 | -6/Garrison | Triggered checkpoint 25899 | -6/Garrison | Garrison Relay disabled 26009 | -6/Garrison | Triggered checkpoint 26019 | -6/Garrison | Triggered checkpoint 26170 | -6/Garrison | Discovered new exit (range 9) 26268 | -6/Garrison | Triggered checkpoint 26274 | -6/Garrison | Triggered checkpoint 26365 | -6/Garrison | Discovered new exit (range 11) 26455 | -6/Garrison | Triggered checkpoint 26469 | -6/Garrison | Lost 4 parts (1n1u2w) 26473 | -6/Garrison | Garrison Relay disabled 26961 | -6/Garrison | Discovered new exit (range 13) 27039 | -6/Garrison | Triggered checkpoint 27082 | -6/Garrison | Garrison Relay disabled 27110 | -6/Garrison | Build established: Botlord-Tank 27123 | -6/Garrison | Expanded RIF knowledge: Zone Cloak 27193 | -6/Garrison | System corruption reached 30% 27195 | -6/Garrison | Entered Factory 27195 | -5/Factory | Evolved 2 slots: Propulsion x1, Utility x1 27270 | -5/Factory | Identified exit to Upper Caves 28155 | -5/Factory | Sucked down chute 28155 | -5/Factory | Entered Waste 28156 | -5/Waste | Met a frightened Derelict 28170 | -5/Waste | EMP discharged 28179 | -5/Waste | Spotted C-40 Crusher 28211 | -5/Waste | Spotted C-40 Crusher 28232 | -5/Waste | Destroyed C-40 Crusher 28248 | -5/Waste | Found Damper Plating 28266 | -5/Waste | Spotted C-40 Crusher 28270 | -5/Waste | EMP discharged 28277 | -5/Waste | Destroyed C-40 Crusher 28311 | -5/Waste | Destroyed C-40 Crusher 28358 | -5/Waste | Build established: Bothacker-Tank 28360 | -5/Waste | Spotted C-40 Crusher 28370 | -5/Waste | EMP discharged 28371 | -5/Waste | Spotted C-40 Crusher 28380 | -5/Waste | Destroyed C-40 Crusher 28454 | -5/Waste | Destroyed C-40 Crusher 28454 | -5/Waste | Spotted C-40 Crusher 28470 | -5/Waste | EMP discharged 28565 | -5/Waste | Discovered new exit (range 12) 28570 | -5/Waste | EMP discharged 28587 | -5/Waste | Destroyed C-40 Crusher 28651 | -5/Waste | Entered Factory 28738 | -5/Factory | Discovered new exit (range 7) 28808 | -5/Factory | Fabricated M-13 Machinist (x1) 28850 | -5/Factory | Identified exit to Garrison 28850 | -5/Factory | Entered Garrison 28850 | -5/Garrison | Accompanied by 1 ally 28884 | -5/Garrison | Triggered checkpoint 28927 | -5/Garrison | Garrison Relay disabled 28983 | -5/Garrison | Spotted B-90 Cyclops 29006 | -5/Garrison | Destroyed B-90 Cyclops 29056 | -5/Garrison | Rewired B-90 Cyclops 29255 | -5/Garrison | Expanded RIF knowledge: Coupler Efficiency 29265 | -5/Garrison | Build established: Botlord-Tank 29368 | -5/Garrison | Triggered checkpoint 29392 | -5/Garrison | Spotted B-75 Beast 29397 | -5/Garrison | Allies destroyed B-75 Beast 29468 | -5/Garrison | Triggered checkpoint 29474 | -5/Garrison | Triggered checkpoint 29614 | -5/Garrison | Learned Factory security intel 29653 | -5/Garrison | Expanded RIF knowledge: Threat Obfuscation 29665 | -5/Garrison | Discovered new exit (range 5) 29786 | -5/Garrison | Triggered checkpoint 29799 | -5/Garrison | Garrison Relay disabled 30025 | -5/Garrison | Entered Factory 30025 | -5/Factory | Accompanied by 3 allies 30380 | -5/Factory | Identified exit to Garrison 30387 | -5/Factory | Entered Garrison 30387 | -5/Garrison | Accompanied by 3 allies 30434 | -5/Garrison | Triggered checkpoint 30469 | -5/Garrison | Garrison Relay disabled 30614 | -5/Garrison | Spotted B-75 Beast 30631 | -5/Garrison | Triggered checkpoint 30691 | -5/Garrison | Lost 3 allies 30746 | -5/Garrison | Destroyed 8 combat bots 30813 | -5/Garrison | Triggered checkpoint 30992 | -5/Garrison | Discovered new exit (range 10) 31004 | -5/Garrison | Garrison Relay disabled 31071 | -5/Garrison | Expanded RIF knowledge: Program Shield 31140 | -5/Garrison | Triggered checkpoint 31204 | -5/Garrison | Discovered new exit (range 11) 31318 | -5/Garrison | Found embedded Infiltrators 31464 | -5/Garrison | Discovered new exit (range 10) 31481 | -5/Garrison | Entered Factory 31481 | -4/Factory | Accompanied by 2 allies 31481 | -4/Factory | Evolved 2 slots: Power x1, Utility x1 31608 | -4/Factory | P-70 Sage assimilated allied 1K-4S5(x) 31669 | -4/Factory | Discovered new exit (range 11) 31837 | -4/Factory | Identified exit to Garrison 31963 | -4/Factory | Entered Garrison 31963 | -4/Garrison | Accompanied by 1 ally 31978 | -4/Garrison | Triggered checkpoint 32011 | -4/Garrison | Triggered checkpoint 32259 | -4/Garrison | Phase Generator disabled 32306 | -4/Garrison | Lost 4 allies 32457 | -4/Garrison | Garrison Relay disabled 32495 | -4/Garrison | Found Adv. Powered Armor 32500 | -4/Garrison | Found Adv. Powered Armor 32503 | -4/Garrison | Found Adv. Powered Armor 32551 | -4/Garrison | Triggered checkpoint 32556 | -4/Garrison | Spotted B-86 Titan 32628 | -4/Garrison | Lost 7 allies 32725 | -4/Garrison | Destroyed B-86 Titan 32741 | -4/Garrison | Triggered checkpoint 32775 | -4/Garrison | Triggered checkpoint 32809 | -4/Garrison | Triggered checkpoint 32960 | -4/Garrison | Discovered new exit (range 7) 33025 | -4/Garrison | Triggered checkpoint 33150 | -4/Garrison | Rescued a captive Derelict 33166 | -4/Garrison | Garrison Relay disabled 33377 | -4/Garrison | Discovered new exit (range 8) 33567 | -4/Garrison | Expanded RIF knowledge: Structural Interface 33637 | -4/Garrison | Discovered new exit (range 14) 33679 | -4/Garrison | Identified exit to Factory 33691 | -4/Garrison | Entered Factory 33691 | -4/Factory | Accompanied by 3 allies 34429 | -4/Factory | Discovered new exit (range 15) 34441 | -4/Factory | Identified exit to Upper Caves 34441 | -4/Factory | Identified exit to Extension 34447 | -4/Factory | Found Prototype Launcher 34447 | -4/Factory | Identified Mni. Smartbomb Launcher 34518 | -4/Factory | Garrison activated, responded to threat 34885 | -4/Factory | Entered Extension 35504 | -4/Extension | Rescued a captive Derelict 35951 | -4/Extension | Spotted B-86 Titan 35958 | -4/Extension | Destroyed B-86 Titan 35973 | -4/Extension | Spotted B-86 Titan 35991 | -4/Extension | Allies destroyed B-86 Titan 36184 | -4/Extension | Rescued A7 36276 | -4/Extension | Lost 5 allies 36307 | -4/Extension | Rescued a captive Derelict 36309 | -4/Extension | Rescued a captive Derelict 36438 | -4/Extension | Discovered new exit (range 10) 36439 | -4/Extension | Discovered new exit (range 6) 36490 | -4/Extension | Entered Cetus 36490 | -4/Cetus | Accompanied by 9 allies (A7) 36495 | -4/Cetus | Acquired a Cetus Manufacturing Module code from A7 36512 | -4/Cetus | Spotted Cetus Guard 36514 | -4/Cetus | Spotted Cetus Guard 36517 | -4/Cetus | Spotted Cetus Guard 36518 | -4/Cetus | Destroyed Cetus Guard 36523 | -4/Cetus | Spotted Cetus Guard 36528 | -4/Cetus | Allies destroyed Cetus Guard 36533 | -4/Cetus | Allies destroyed Cetus Guard 36535 | -4/Cetus | Allies destroyed Cetus Guard 36607 | -4/Cetus | Started Cetus Manufacturing Module 36629 | -4/Cetus | Discovered new exit (range 16) 36632 | -4/Cetus | Manufactured an Enhanced Grunt 36656 | -4/Cetus | Spotted Cetus Guard 36657 | -4/Cetus | Manufactured an Enhanced Grunt 36657 | -4/Cetus | Destroyed Cetus Guard 36658 | -4/Cetus | Spotted Cetus Guard 36660 | -4/Cetus | Destroyed Cetus Guard 36667 | -4/Cetus | Spotted Cetus Guard 36668 | -4/Cetus | Allies destroyed Cetus Guard 36673 | -4/Cetus | Allies destroyed Cetus Guard 36682 | -4/Cetus | Manufactured an Enhanced Grunt 36689 | -4/Cetus | Discovered new exit (range 16) 36699 | -4/Cetus | Met Revision 17 36707 | -4/Cetus | Manufactured an Enhanced Grunt 36732 | -4/Cetus | Manufactured an Enhanced Grunt 36772 | -4/Cetus | Murdered A7 36775 | -4/Cetus | Extracted ID and sensor layout for unrecognized location from A7's data core 36780 | -4/Cetus | Found Prototype Protection 36780 | -4/Cetus | Identified Med. Regenerative Plating 36841 | -4/Cetus | Entered Archives 36841 | -4/Archives | Accompanied by 9 allies 36915 | -4/Archives | Met Zhirov 36921 | -4/Archives | Reinforcements dispatched to Archives 36921 | -4/Archives | Discovered new exit (range 13) 36946 | -4/Archives | Identified exit to Hub_04(d) 36960 | -4/Archives | Entered Hub_04(d) 36960 | -4/Hub_04(d) | Accompanied by 9 allies 36984 | -4/Hub_04(d) | Identified exit to Garrison 37307 | -4/Hub_04(d) | Discovered new exit (range 9) 37357 | -4/Hub_04(d) | Lost 4 allies 37403 | -4/Hub_04(d) | Network Hub disabled 37670 | -4/Hub_04(d) | Spotted Lightning 37674 | -4/Hub_04(d) | Spotted Lightning 37694 | -4/Hub_04(d) | Destroyed Lightning 37700 | -4/Hub_04(d) | Spotted Lightning 37738 | -4/Hub_04(d) | Destroyed Lightning 37760 | -4/Hub_04(d) | Destroyed Lightning 37792 | -4/Hub_04(d) | Found Prototype Device 37792 | -4/Hub_04(d) | Identified Exp. Phase Shifter 37797 | -4/Hub_04(d) | Found Prototype Device 37797 | -4/Hub_04(d) | Identified Exp. EM Shield 37824 | -4/Hub_04(d) | Found Exp. EM Shield 37853 | -4/Hub_04(d) | Network Hub disabled 37894 | -4/Hub_04(d) | Discovered new exit (range 11) 37979 | -4/Hub_04(d) | Entered Garrison 38285 | -4/Garrison | Triggered checkpoint 38321 | -4/Garrison | Triggered checkpoint 38324 | -4/Garrison | Triggered checkpoint 38346 | -4/Garrison | Triggered checkpoint 38380 | -4/Garrison | Destroyed 9 combat bots 38452 | -4/Garrison | Destroyed 8 combat bots 38479 | -4/Garrison | Discovered new exit (range 8) 38709 | -4/Garrison | Discovered new exit (range 14) 38736 | -4/Garrison | Expanded RIF knowledge: Crosswire 38787 | -4/Garrison | Triggered checkpoint 38831 | -4/Garrison | Garrison Relay disabled 38957 | -4/Garrison | Triggered checkpoint 39055 | -4/Garrison | Discovered new exit (range 15) 39180 | -4/Garrison | Expanded RIF knowledge: Code Merge 39497 | -4/Garrison | System corruption reached 10% 39499 | -4/Garrison | Entered Research 39499 | -3/Research | Evolved 2 slots: Power x1, Propulsion x1 39699 | -3/Research | Revision forces began assault on 0b10 39717 | -3/Research | Met up with Revision 17++ 39894 | -3/Research | Found Exp. Terrain Scan Processor 40117 | -3/Research | Discovered new exit (range 35) 40134 | -3/Research | Identified exit to Research 40195 | -3/Research | Identified exit to Armory 40195 | -3/Research | Identified exit to Testing 40199 | -3/Research | Research terminal network offline 40622 | -3/Research | Found Unknown Launcher 40622 | -3/Research | Identified Gamma Bomb Array 40854 | -3/Research | Destroyed Striker 40863 | -3/Research | Spotted Striker 40898 | -3/Research | Lost 3 allies 41124 | -3/Research | Entered Testing 41143 | -3/Testing | Found Prototype Ballistic Cannon 41143 | -3/Testing | Identified Omega Cannon 41308 | -3/Testing | Found Prototype Device 41308 | -3/Testing | Identified Exp. Hardlight Generator 41500 | -3/Testing | Spotted PX-YVZPY6ZKDL 41510 | -3/Testing | Destroyed PX-YVZPY6ZKDL 41526 | -3/Testing | Found Prototype Processor 41526 | -3/Testing | Identified Spectral Analyzer 41540 | -3/Testing | Found Prototype Device 41540 | -3/Testing | Identified Exp. Transmission Jammer 41607 | -3/Testing | Build established: Botlord-Gunner 41629 | -3/Testing | Spotted Striker 42164 | -3/Testing | Garrison activated, responded to threat 42169 | -3/Testing | Discovered exit to Research (range 5) 42362 | -3/Testing | Identified exit to Garrison 42362 | -3/Testing | Entered Garrison 42372 | -3/Garrison | Spotted B-86 Titan 42414 | -3/Garrison | Spotted B-90 Cyclops 42426 | -3/Garrison | Destroyed B-90 Cyclops 42440 | -3/Garrison | Destroyed B-86 Titan 42501 | -3/Garrison | Rewired B-90 Cyclops 42528 | -3/Garrison | Rewired B-86 Titan 42645 | -3/Garrison | Build established: Botlord-Tank 42761 | -3/Garrison | Rewired Striker 42818 | -3/Garrison | Triggered checkpoint 42848 | -3/Garrison | Garrison Relay disabled 42964 | -3/Garrison | Triggered checkpoint 42965 | -3/Garrison | Spotted B-86 Titan 43008 | -3/Garrison | Spotted Titan 8a 43013 | -3/Garrison | Destroyed B-86 Titan 43015 | -3/Garrison | Destroyed Titan 8a 43033 | -3/Garrison | Lost 4 allies 43087 | -3/Garrison | Destroyed 7 combat bots 43155 | -3/Garrison | Discovered exit to Research (range 10) 43198 | -3/Garrison | Triggered checkpoint 43198 | -3/Garrison | Triggered checkpoint 43227 | -3/Garrison | Garrison Relay disabled 43264 | -3/Garrison | Garrison Relay disabled 43285 | -3/Garrison | Lost 4 allies 43594 | -3/Garrison | Discovered exit to Research (range 11) 43611 | -3/Garrison | Expanded RIF knowledge: Robot Detection 43645 | -3/Garrison | Garrison Relay disabled 43694 | -3/Garrison | Garrison Relay disabled 43696 | -3/Garrison | Garrison Relay disabled 43753 | -3/Garrison | Garrison Relay disabled 43916 | -3/Garrison | Entered Research 43916 | -2/Research | Accompanied by 4 allies 43916 | -2/Research | Evolved 2 slots: Utility x1, Weapon x1 44069 | -2/Research | Build established: Botlord-Gunner 44256 | -2/Research | Destroyed 7 combat bots 44439 | -2/Research | Discovered new exit (range 103) 45148 | -2/Research | Identified exit to Access 45705 | -2/Research | Discovered new exit (range 12) 45734 | -2/Research | Entered Quarantine 45915 | -2/Quarantine | Found Alien Artifact 45931 | -2/Quarantine | Identified Core Reset Matrix 46148 | -2/Quarantine | Build established: Botlord-Tank 46257 | -2/Quarantine | Found Alien Impact Weapon 46475 | -2/Quarantine | Identified Core Stripper 46513 | -2/Quarantine | Build established: Botlord-Gunner 46899 | -2/Quarantine | Discovered exit to Access (range 8) 46943 | -2/Quarantine | Build established: Botlord-Tank 47073 | -2/Quarantine | Spotted Fortress 47080 | -2/Quarantine | Assimilated Fortress with formatsys_high 47194 | -2/Quarantine | Discovered new exit (range 6) 47194 | -2/Quarantine | Discovered new exit (range 6) 47210 | -2/Quarantine | Identified exit to Protoforge 47219 | -2/Quarantine | Identified exit to Section 7 47226 | -2/Quarantine | Entered Section 7 47226 | -2/Section 7 | Accompanied by 4 allies 47226 | -2/Section 7 | Spotted S7 Guard 47244 | -2/Section 7 | Destroyed S7 Guard 47252 | -2/Section 7 | Found Prototype Protection 47252 | -2/Section 7 | Identified Hvy. Regenerative Plating 47291 | -2/Section 7 | Found Alien Artifact 47538 | -2/Section 7 | Spotted S7 Guard 47567 | -2/Section 7 | Destroyed S7 Guard 47590 | -2/Section 7 | Found Alien Artifact 47775 | -2/Section 7 | Found Alien Artifact 47799 | -2/Section 7 | Garrison activated, responded to threat 47959 | -2/Section 7 | Found Hellfire Missile Launcher 48150 | -2/Section 7 | Identified Integrated Dissipator 48150 | -2/Section 7 | Identified Integrated Thermoelectric Network 48150 | -2/Section 7 | Identified Navigation Efficiency Matrix 48154 | -2/Section 7 | Installed Integrated Thermoelectric Network, gained heat-energy exchange potential 48156 | -2/Section 7 | Installed Integrated Dissipator, increased core heat dissipation (+20) 48161 | -2/Section 7 | Spotted B-90 Cyclops 48254 | -2/Section 7 | Found Integrated Dissipator 48254 | -2/Section 7 | Installed Integrated Dissipator, increased core heat dissipation (+20) 48418 | -2/Section 7 | Found Microwarp Drive 48476 | -2/Section 7 | Spotted Executioner 48476 | -2/Section 7 | Spotted Executioner 48487 | -2/Section 7 | Destroyed Executioner 48490 | -2/Section 7 | Destroyed Executioner 48494 | -2/Section 7 | Found Prototype Processor 48494 | -2/Section 7 | Identified Exp. Targeting Computer 48514 | -2/Section 7 | Found Prototype Processor 48514 | -2/Section 7 | Identified Exp. Core Analyzer 48526 | -2/Section 7 | Found Prototype Device 48585 | -2/Section 7 | Found Alien Reactor 48604 | -2/Section 7 | Spotted B-99 Colossus 48670 | -2/Section 7 | Found Alien Artifact 48670 | -2/Section 7 | Identified Integrated Reactor 48670 | -2/Section 7 | Installed Integrated Reactor, increased core energy generation (+10) 48673 | -2/Section 7 | Found Integrated Reactor 48673 | -2/Section 7 | Installed Integrated Reactor, increased core energy generation (+10) 48676 | -2/Section 7 | Found Integrated Reactor 48676 | -2/Section 7 | Installed Integrated Reactor, increased core energy generation (+10) 48736 | -2/Section 7 | Found Alien Artifact 48736 | -2/Section 7 | Identified LRC Insulator 48736 | -2/Section 7 | Installed LRC Insulator, 1 resistance modified: EM +25% 48760 | -2/Section 7 | Build established: Botlord-Gunner 49067 | -2/Section 7 | Spotted Alpha 7 49178 | -2/Section 7 | Discovered exit to Access (range 16) 49189 | -2/Section 7 | Build established: Botlord-Tank 49197 | -2/Section 7 | Found Integrated Reactor 49197 | -2/Section 7 | Installed Integrated Reactor, increased core energy generation (+10) 49270 | -2/Section 7 | Identified Matter Drive 49469 | -2/Section 7 | Assimilated Cyclops 9a with formatsys_high 49483 | -2/Section 7 | Garrison activated, responded to threat 49807 | -2/Section 7 | Scanned by Researcher 49808 | -2/Section 7 | Intercept squad dispatched 49815 | -2/Section 7 | Spotted Tracker 49815 | -2/Section 7 | Spotted Tracker 49830 | -2/Section 7 | Spotted Combat Programmer 49831 | -2/Section 7 | Destroyed Tracker 49834 | -2/Section 7 | Spotted Combat Programmer 49834 | -2/Section 7 | Destroyed Tracker 49851 | -2/Section 7 | Destroyed Combat Programmer 49865 | -2/Section 7 | Destroyed Combat Programmer 49896 | -2/Section 7 | Destroyed 9 combat bots 50002 | -2/Section 7 | Intercept squad dispatched 50003 | -2/Section 7 | Spotted Tracker 50003 | -2/Section 7 | Spotted Tracker 50005 | -2/Section 7 | Spotted Tracker 50007 | -2/Section 7 | Spotted Combat Programmer 50008 | -2/Section 7 | Spotted Combat Programmer 50009 | -2/Section 7 | Spotted Combat Programmer 50010 | -2/Section 7 | System corruption reached 10% 50012 | -2/Section 7 | Destroyed Tracker 50025 | -2/Section 7 | Destroyed Tracker 50039 | -2/Section 7 | Destroyed Combat Programmer 50045 | -2/Section 7 | Destroyed Combat Programmer 50057 | -2/Section 7 | Destroyed Combat Programmer 50278 | -2/Section 7 | Entered Access 50278 | -1/Access | Accompanied by 1 ally 50278 | -1/Access | Evolved 2 slots: Utility x1, Weapon x1 50606 | -1/Access | Build established: Botlord-Executioner 50714 | -1/Access | Crushed by falling debris 50871 | -1/Access | Identified Adv. Kinecellerator 51006 | -1/Access | Build established: Scavenger-Executioner 51473 | -1/Access | Discovered new exit (range 7) 52135 | -1/Access | Intercept squad dispatched 52181 | -1/Access | Spotted Tracker 52182 | -1/Access | Spotted Tracker 52183 | -1/Access | Destroyed Tracker 52183 | -1/Access | Destroyed Tracker 52205 | -1/Access | Spotted Combat Programmer 52207 | -1/Access | Destroyed Combat Programmer 52241 | -1/Access | Spotted Combat Programmer 52243 | -1/Access | Destroyed Combat Programmer 53682 | -1/Access | Intercept squad dispatched 53731 | -1/Access | Spotted Tracker 53732 | -1/Access | Spotted Tracker 53733 | -1/Access | Destroyed Tracker 53734 | -1/Access | Destroyed Tracker 53754 | -1/Access | Spotted Combat Programmer 53756 | -1/Access | Destroyed Combat Programmer 53792 | -1/Access | Spotted Combat Programmer 53794 | -1/Access | Destroyed Combat Programmer 53800 | -1/Access | Entered Command 53943 | -1/Command | Spotted B-99 Colossus 53957 | -1/Command | Destroyed B-99 Colossus 54341 | -1/Command | Spotted M Guard 54341 | -1/Command | Spotted M Guard 54354 | -1/Command | Spotted Combat Programmer 54354 | -1/Command | Spotted Combat Programmer 54359 | -1/Command | Destroyed Combat Programmer 54360 | -1/Command | Destroyed Combat Programmer 54411 | -1/Command | Destroyed M Guard 54443 | -1/Command | Destroyed M Guard 54443 | -1/Command | All MAIN.C guards destroyed 54530 | -1/Command | Found Prototype Reactor 54530 | -1/Command | Identified Zero-point Reactor 55054 | -1/Command | Destroyed 11 combat bots 55302 | -1/Command | Met MAIN.C 55305 | -1/Command | Destroyed MAIN.C Shell 55305 | -1/Command | 0b10 Conduit disabled 55306 | -1/Command | Surrendered to MAIN.C 55306 | -1/Command | Loaded intel: 56 machine locations 55306 | -1/Command | Loaded intel: 113 trap records 55306 | -1/Command | Identified exit to Surface 55306 | -1/Command | Discovered exit to Surface (range 107) 55306 | -1/Command | Discovered exit to Surface (range 49) 55371 | -1/Command | Found Prototype Energy Cannon 55371 | -1/Command | Identified Cld. Nova Cannon 55380 | -1/Command | Found Vortex Chain Reactor 55389 | -1/Command | Found Prototype Device 55389 | -1/Command | Identified Exp. System Purifier 55419 | -1/Command | Found Vortex Chain Reactor 55531 | -1/Command | MAIN.C activated Command garrisons 55569 | -1/Command | Unknown forces attacked Command 55569 | -1/Command | Spotted EQ-000 55569 | -1/Command | Spotted EQ-002 55569 | -1/Command | Spotted EQ-003 55569 | -1/Command | Spotted EQ-006 55571 | -1/Command | Destroyed EQ-002 55571 | -1/Command | Spotted EQ-004 55571 | -1/Command | Spotted EQ-005 55572 | -1/Command | Destroyed EQ-000 55574 | -1/Command | Spotted EQ-001 55578 | -1/Command | Destroyed EQ-004 55582 | -1/Command | Destroyed EQ-001 55583 | -1/Command | Destroyed EQ-003 55584 | -1/Command | Destroyed EQ-006 55585 | -1/Command | Destroyed EQ-005 55591 | -1/Command | Spotted EQ-007 55594 | -1/Command | Destroyed EQ-007 55615 | -1/Command | Destroyed 8 combat bots 55627 | -1/Command | Spotted EQ-010 55631 | -1/Command | Destroyed EQ-010 55655 | -1/Command | Lost 4 allies 55668 | -1/Command | Spotted EQ-019 55668 | -1/Command | Spotted EQ-018 55668 | -1/Command | Spotted EQ-020 55669 | -1/Command | Destroyed EQ-018 55670 | -1/Command | Destroyed EQ-019 55671 | -1/Command | Destroyed EQ-020 55757 | -1/Command | Spotted EQ-024 55758 | -1/Command | Spotted EQ-027 55769 | -1/Command | Spotted EQ-032 55773 | -1/Command | Spotted EQ-056 55784 | -1/Command | Spotted EQ-040 55786 | -1/Command | Destroyed EQ-040 55788 | -1/Command | Spotted EQ-039 55790 | -1/Command | Spotted EQ-054 55794 | -1/Command | Spotted EQ-041 55794 | -1/Command | Spotted EQ-038 55796 | -1/Command | Destroyed EQ-054 55797 | -1/Command | Destroyed EQ-038 55798 | -1/Command | Destroyed EQ-041 55830 | -1/Command | Spotted EQ-028 55833 | -1/Command | Destroyed EQ-028 55835 | -1/Command | Spotted EQ-050 55835 | -1/Command | Spotted EQ-046 55838 | -1/Command | Destroyed EQ-046 55839 | -1/Command | Destroyed EQ-050 55844 | -1/Command | Spotted EQ-053 55849 | -1/Command | Spotted EQ-057 55849 | -1/Command | Destroyed EQ-053 55852 | -1/Command | Destroyed EQ-057 55880 | -1/Command | Lost 14 allies 55883 | -1/Command | Spotted EQ-060 55885 | -1/Command | Destroyed EQ-060 55885 | -1/Command | Spotted EQ-062 55887 | -1/Command | Destroyed EQ-062 55903 | -1/Command | Spotted EQ-071 55906 | -1/Command | Destroyed EQ-071 55906 | -1/Command | Spotted EQ-061 55918 | -1/Command | Destroyed EQ-061 55943 | -1/Command | Spotted EQ-073 55947 | -1/Command | Spotted EQ-083 55956 | -1/Command | Destroyed EQ-083 55956 | -1/Command | Destroyed EQ-073 55957 | -1/Command | Attackers retreated from Command 55958 | *** | Fortifying 0b10! Last Messages --------------- 55948_ Acquired 120 matter. 55948_ Destroyed Unknown Reactor. 55949_ Acquired 60 matter. 55955_ Acquired 11 matter. 55955_ Destroyed Imp. Shock Absorption System. 55955_ Slug penetrates EQ-083. 55956_ Acquired 6 matter. 55956_ EQ-083 destroyed. 55956_ Switching to secondary target: EQ-073. 55956_ EQ-073 destroyed. 55957_ Acquired 114 matter. 55957_ ALERT: Enemy forces retreating. MAIN.C: I admit your assistance was pivotal here. It looks like I was right to trust you. This attack appears to have been designed to merely test our defenses, although it was nearly effective enough to force me to take the conflict to the next level. Investigating the origins of these bots should be one of our highest priorities... Map ----- +----------------------------------------------------+ | ^ #???????????????????????????????? | | #???????????????????????????????? | | ########## # #??????????????????????????????? | | ???????? # ##?????????????????????????????? | | ????????? * ##?????????????????????????????? | | ####????? %%% # ?????????????????????????????? | | ####### %! #?????????????????????????????? | | # #!! ###########################???? | | " # =!!%* #?????????????????????????#???? | | " # #=!! #?#######################?#???? | | " + != # #?#""""""" """" ####### | | " # #?#"" "" ! #?#???? | | # !=! ###?#" """ "" ! ####### | | +!% !!!%! #?# " """"" = %"% | | #! ]![!! #?#" " =/[ | | #### ! [! ##?#" [/[ | | ???##########!! #?# %####### | | ############ #?#] [! #?#???? | | * #?# = =* ####### | | #?# M[ = ""#?#???? | | = % #?#" !=! !=] """"#?#???? | | # =! #?#" ! *= = " """#?#???? | | =!=%[# #?#!* ! x! [ x """"#?#???? | | #######"#####![[%###?#! !! [! E7 " #?#???? | | ??# *###[#!!===####=! = [!=** !! " #?#???? | | ??# ![%!! =%!*!=p!!=! @=* [!* = """ #?#???? | | ??# = [=*%[!!!=! !!!=]! [ " [ !!!" *#?#???? | | ?#" !*=[==!%=!!!!*!!] ! =** !*[ ] #?#???? | | ## ![!"!#!#;=!!##### """ " !" != !#?#???? | | #" *=%*%#! ][! !# #?# [ !""" !!!! !"=! "#?#???? | | #" %%[! #!!=] # #?# ! """ " " ] #?#???? | | *% ! ?# ! " ###?#######################?#???? | | = % #?# !!*"""#?#?????????????????????????#???? | | ^ #?# %[%=T"#?###########################???? | | #?# %!="""#???????????????????????????????? | | ^ #?# [!"" #???????????????????????????????? | | === #?# #???????????????????????????????? | | === #?# =!! #???????????????????????????????? | | == ### !%! #???????????????????????????????? | | ## =!* #???????????????????????????????? | | ###+##"###???????????????????????????????? | | ## #???????????????????????????????? | | ]! ## !#???????????????????????????????? | | ] ## ! #???????????????????????????????? | | ## #???????????????????????????????? | | ## #???????????????????????????????? | | ## #???????????????????????????????? | | ## #???????????????????????????????? | | ## #???????????????????????????????? | | # ##### #???????????????????????????????? | +----------------------------------------------------+ Best States ------------- Heat Dissipation 130 Energy Generation 123 Energy Capacity 850 Matter Stores 550 Matter Capacity 550 Sight Range 16 Terrain Scan Density 10 Jamming Range 22 Armor Coverage 3200 Resistance: TH 15 Resistance: EM 100 Point Defense Rating 240 Weapon Cycling 30 Evasion (%) 55 Targeting Accuracy 8 Core Analysis 8 Recoil Reduction 6 Kinecelleration 50 Offensive Hacking 30 Relay Coupler Types 6 Relay Coupler Value 198 Authchip Count 2 Item Schematics ----------------- Huge Storage Unit | -10/Materials | Hacked Hcp. Storage Unit | -9/Materials | Hacked Lgt. Treads | -9/Materials | Hacked Imp. Kinecellerator | -5/Factory | Hacked Imp. Matter Compressor | -3/Testing | Archive Exp. Focal Shield | -2/Quarantine | Archive Exp. Thermal Shield | -2/Quarantine | Archive Adv. Plasma Rifle | -2/Quarantine | Archive Exp. Flexi-carbon Leg | -2/Section 7 | Archive Hds. Centrium Leg | -2/Section 7 | Archive Exp. Power Amplifier | -2/Section 7 | Archive Cld. Antigrav System | -2/Section 7 | Archive Exp. Gyrokinetic Inverter | -2/Section 7 | Archive Hvy. Dispersion Rifle | -2/Section 7 | Archive Robot Schematics ------------------ M-13 Machinist | -9/Materials | Hacked B-74 Champion | -3/Testing | Archive G-73 Enforcer | -2/Quarantine | Archive R-06 Scavenger | -2/Quarantine | Archive A-02 Transporter | -2/Section 7 | Archive S-43 Plague | -2/Section 7 | Archive R-10 Processor | -2/Section 7 | Archive Fabricated ------------ M-13 Machinist | x1 | -5/Factory | Authchip Repaired ---------- Lgt. Treads | 1% | -9/Materials Lgt. Treads | 72% | -9/Materials Assault Rifle | 28% | -9/Materials Lgt. Treads | 57% | -9/Materials Imp. Light Armor Plating | 53% | -8/Materials Alien Tech Used ----------------- Core Stripper Integrated Thermoelectric Network Integrated Dissipator Microwarp Drive Integrated Reactor LRC Insulator Achievements -------------- None Challenges ------------ None Game ------ Seed NeutronPitchforkSystem Manual? 0 Play Time 08:22:16 Cumulative 1212.0 hours Start 2025.07.15 @ 19:07:26 End 2025.07.18 @ 21:05:02 Sessions 13 Manual Loads 0 Difficulty Rogue Special Mode None Game No. 535 Rogue 534 Adventurer 1 Explorer 0 Win Type 8 Total 194 Types 56/16/30/5/2/1/76/3/3/2 Lore% 98 Gallery% 99 Achievement% 94 Wizard Run 0 Options --------- Layout 2 ASCII 0 Keyboard 1 Movement Numpad Keybinds 0 Fullscreen 0 Font 24/Terminus Map View 50x44 Zoom Use 0% Tactical HUD 1 Map Filters NONE Filters NONE Steam 1 RUN: 5d0a91c2-4ce8-4c3a-8136-ef4cb954299c